Workbook

Sheet INTRO
A26: COPYRIGHT©: 1996-2011 Thermaflex
A28: PIPESIZING A-B (B-A) for MICROSOFT EXCEL 2007 or higher. This Calculation is based on the Material Properties of "FLEXALEN 600 and FLEXALEN SL".
A29: COPYRIGHT©: 1999-2011 Thermaflex; PIPESIZING A-B(-B-A) for MICROSOFT EXCEL 2007 or higher.
A31: This Software belongs to THERMAFLEX and may not be copied or transfered to another user without prior approval of Thermaflex.
A32: Please note that despite careful development and stringent tests no software can give a guarantee for total faultless results.
A34: If you face any problem please contact : academy@thermaflex.com
A35: THERMAFLEX cannot accept any liability for the results or problems with the data or computer.
A36: The compatibility of this Software has to be checked by the user prior to the installation.
A37: Please check every result to be safe!

Sheet CALC
A1: © 1999-2011 THERMAFLEX / Unautorized passing on of the software is forbidden! | Z1: LANGUAGE | AA1: PRODUCT
Z2: =Language!B1 -> ENGLISH | AA2: =IF(PARAMETER_HL!#REF!="","",PARAMETER_HL!#REF!) -> 
B3: =HLOOKUP($K$32,Language!$B:$Y,2,0) -> PIPE SIZING FOR SINGLE OR DOUBLE LINES BETWEEN 2 NET POSITIONS | Z3: =Language!C1 -> GERMAN | AA3: =IF(PARAMETER_HL!#REF!="","",PARAMETER_HL!#REF!) -> 
B4: =HLOOKUP($K$32,Language!$B:$Y,3,0) -> FLEXALEN - PREINSULATED PIPE SYSTEMS | Z4: =Language!D1 -> BULAGRIAN | AA4: =IF(PARAMETER_HL!#REF!="","",PARAMETER_HL!#REF!) -> 
B5: =HLOOKUP($K$32,Language!$B:$Y,4,0) -> MADE FOR DOMESTIC WATER DISTRIBUTION, COOLING AND HEATING SUPPLY LINES | Z5: =Language!E1 -> DUTCH | AA5: =IF(PARAMETER_HL!#REF!="","",PARAMETER_HL!#REF!) -> 
Z6: =Language!F1 -> FRENCH | AA6: =IF(PARAMETER_HL!#REF!="","",PARAMETER_HL!#REF!) -> 
Z7: =Language!G1 -> ROMANIAN | AA7: =IF(PARAMETER_HL!#REF!="","",PARAMETER_HL!#REF!) -> 
B8: =HLOOKUP($K$32,Language!$A:$Y,51,0) -> PLEASE CHOOSE APPLICATION: | C8: =HLOOKUP($K$32,Language!$A:$Y,52,0) -> SUPPLY LINE → | G8: =HLOOKUP($K$32,Language!$A:$Y,22,0) -> USABLE TEMP. DIFF. | I8: =IFERROR(IF(G29="E",HLOOKUP($K$32,Language!$A:$Y,36,0),K16-K18),HLOOKUP($K$32,Language!$A:$Y,78,0)) -> Choose product | Z8: =Language!H1 -> TURKISH | AA8: =IF(PARAMETER_HL!#REF!="","",PARAMETER_HL!#REF!) -> 
C9: =HLOOKUP($K$32,Language!$A:$Y,53,0) -> HEATING / COOLING → | G9: =HLOOKUP($K$32,Language!$A:$Y,23,0) -> USABLE LOAD | I9: =IFERROR(IF(G29="E",HLOOKUP($K$32,Language!$A:$Y,36,0),TEMPERATUR!C28),HLOOKUP($K$32,Language!$A:$Y,78,0)) -> Choose product | Z9: RUSSIAN | AA9: =IF(PARAMETER_HL!#REF!="","",PARAMETER_HL!#REF!) -> 
G10: =HLOOKUP($K$32,Language!$A:$Y,24,0) -> NET VOLUME | I10: =TEMPERATUR!G12 -> 0 | Z10: CZECH | AA10: =IF(PARAMETER_HL!#REF!="","",PARAMETER_HL!#REF!) -> 
B11: =IF($G$29="D",HLOOKUP($K$32,Language!$A:$Y,60,0),HLOOKUP($K$32,Language!$A:$Y,55,0)) -> FLOW TEMPERATURE | C11: (Tf) | E11: =IF($G$29="D",HLOOKUP($K$32,Language!A:Y,71,FALSE),HLOOKUP($K$32,Language!A:Y,66,FALSE)) -> °C | Z11: ITALIAN | AA11: =IF(PARAMETER_HL!#REF!="","",PARAMETER_HL!#REF!) -> 
B12: =IF($G$29="D",HLOOKUP($K$32,Language!$A:$Y,61,0),"") -> RETURN TEMPERATURE | C12: =IF(G29="E","","(Tr)") -> (Tr) | E12: =IF($G$29="D",HLOOKUP($K$32,Language!A:Y,72,FALSE),"") -> °C | G12: =HLOOKUP($K$32,Language!$A:$Y,25,0) -> SOURCE | H12: =PARAMETER_R!C31 -> 0 | I12: =HLOOKUP($K$32,Language!$A:$Y,29,0) -> RESERVE PRESSURE FOR PUMP | Z12: CROATIAN | AA12: =IF(PARAMETER_HL!#REF!="","",PARAMETER_HL!#REF!) -> 
B13: =HLOOKUP($K$32,Language!A:Y,10,0) -> TEMP. DIFFERENCE (Tf - Tr) | D13: =IF(G29="E",HLOOKUP($K$32,Language!$A:$Y,36,0),D11-D12) -> 0 | E13: K | G13: =HLOOKUP($K$32,Language!$A:$Y,26,0) -> TEMP. DIFF. | I13: =HLOOKUP($K$32,Language!$A:$Y,30,0) -> Temperature °C | J13: =HLOOKUP($K$32,Language!$A:$Y,31,0) -> Pressure loss bar | K13: =HLOOKUP($K$32,Language!$A:$Y,32,0) -> Dimension OD | L13: =HLOOKUP($K$32,Language!$A:$Y,33,0) -> END POINT | Z13: HUNGARIAN | AA13: =IF(PARAMETER_HL!#REF!="","",PARAMETER_HL!#REF!) -> 
B14: =HLOOKUP($K$32,Language!$A:$Y,62,0) -> TRENCH LENGTH | E14: =HLOOKUP($K$32,Language!A:Y,73,FALSE) -> m | G14: =IF(G29="E",HLOOKUP($K$32,Language!$A:$Y,27,0),D13) -> 0 | Z14: POLISH | AA14: =IF(PARAMETER_HL!#REF!="","",PARAMETER_HL!#REF!) -> 
B15: =IF($G$29="D",HLOOKUP($K$32,Language!$A:$Y,63,0),HLOOKUP($K$32,Language!$A:$Y,57,0)) -> HEAT LOAD | E15: =IF(G29="D",HLOOKUP($K$32,Language!A:Y,74,FALSE),HLOOKUP($K$32,Language!A:Y,68,FALSE)) -> kW | H15: =HLOOKUP($K$32,Language!$A:$Y,34,0) -> FLOW | I15: =D11 -> 0 | J15: =D26/100000 -> 0 | K15: =D24 -> 16 | Z15: ESPAÑOL | AA15: =IF(PARAMETER_HL!#REF!="","",PARAMETER_HL!#REF!) -> 
B16: =IF($G$29="D",HLOOKUP($K$32,Language!$A:$Y,64,0),HLOOKUP($K$32,Language!$A:$Y,58,0)) -> ADDITIONAL PRESSURE FOR PUMP | E16: =IF($G$29="D",HLOOKUP($K$32,Language!A:Y,69,FALSE),HLOOKUP($K$32,Language!A:Y,75,FALSE)) -> bar | G16: =HLOOKUP($K$32,Language!$A:$Y,28,0) -> PUMP | H16: =D11 -> 0 | K16: =IFERROR(D11-TEMPERATUR!C23,HLOOKUP($K$32,Language!$A:$Y,78,0)) -> Choose product | AA16: =IF(PARAMETER_HL!#REF!="","",PARAMETER_HL!#REF!) -> 
G17: =IF(G29="E",J15,J15+J17)+H12 -> 0 | H17: =HLOOKUP($K$32,Language!$A:$Y,35,0) -> RETURN | I17: =IF(G29="E","------",D12) -> 0 | J17: =IFERROR(D27/100000,0) -> 0 | K17: =IF(G29="E","------",D24) -> 16 | AA17: =IF(PARAMETER_HL!#REF!="","",PARAMETER_HL!#REF!) -> 
B18: =HLOOKUP($K$32,Language!A:Y,7,0) -> SIZE TUNING | D18: 1 | E18: x | G18: =D21 * 3.6 -> 0 | H18: =IF(G29="E",HLOOKUP($K$32,Language!$A:$Y,36,0),D12) -> 0 | K18: =IFERROR(IF(G29="E",HLOOKUP($K$32,Language!$A:$Y,36,0),H18+TEMPERATUR!D23),HLOOKUP($K$32,Language!$A:$Y,78,0)) -> Choose product | AA18: =IF(PARAMETER_HL!#REF!="","",PARAMETER_HL!#REF!) -> 
I19: =PARAMETER_R!C28 -> 0 | AA19: =IF(PARAMETER_HL!#REF!="","",PARAMETER_HL!#REF!) -> 
B20: =HLOOKUP($K$32,Language!A:Y,12,0) -> HEAT LOAD kW SOURCE | D20: =PARAMETER_R!C29 -> 0 | E20: kW | AA20: =IF(PARAMETER_HL!#REF!="","",PARAMETER_HL!#REF!) -> 
B21: =HLOOKUP($K$32,Language!A:Y,13,0) -> VOLUMETRIC FLOW RATE | D21: =IF(G29<>"E",IF(D20=0,PARAMETER_R!C30,(D20*1000/(D13* 4196))),IF(PARAMETER_R!C30=0,0.00000000001,PARAMETER_R!C30)) -> 0 | E21: l/s | G21: =HLOOKUP($K$32,Language!$A:$Y,37,0) -> Soil temperature | H21: 10 | J21: =HLOOKUP($K$32,Language!$A:$Y,40,0) -> Temperature drop Flow | L21: =IFERROR(H16-K16,HLOOKUP($K$32,Language!$A:$Y,78,0)) -> Choose product | AA21: =IF(PARAMETER_HL!#REF!="","",PARAMETER_HL!#REF!) -> 
B22: =HLOOKUP($K$32,Language!A:Y,14,0) -> PIPE LENGTH | D22: =IF(G29="E",PARAMETER_R!C28,PARAMETER_R!C28*2) -> 0 | E22: m | G22: =HLOOKUP($K$32,Language!$A:$Y,38,0) -> Coverage | H22: 800 | J22: =HLOOKUP($K$32,Language!$A:$Y,41,0) -> Trench Length | L22: =PARAMETER_R!C28 -> 0
G23: =HLOOKUP($K$32,Language!$A:$Y,39,0) -> Lambda soil | H23: 1 | J23: =HLOOKUP($K$32,Language!$A:$Y,42,0) -> Dwell time Flow | L23: =IFERROR(TEMPERATUR!C13,0) -> 0
B24: =HLOOKUP($K$32,Language!$A:$Y,15,0) -> OD (DIMENSION) | D24: =IF(D21*D18<PARAMETER_R!$J$7, PARAMETER_R!$A$7, LOOKUP(D21*D18,PARAMETER_R!$J$7:$J$20,PARAMETER_R!$A$7:$A$20)) -> 16
B25: =HLOOKUP($K$32,Language!$A:$Y,16,0) -> VELOCITY | D25: =D21/((LOOKUP(D24,PARAMETER_R!$A$7:$A$20,PARAMETER_R!$B$7:$B$20)/2)^2*PI()*0.001) -> 0 | G25: =HLOOKUP($K$32,Language!$A:$Y,43,0) -> Pressure rating | H25: =IF(D24>110,6,8) -> 8 | I25: =HLOOKUP($K$32,Language!$A:$Y,47,0) -> at 95°C
B26: =HLOOKUP($K$32,Language!$A:$Y,17,0) -> PRESSURE DROP FLOW | D26: =PARAMETER_R!C28*D25^PARAMETER_R!$B$1*LOOKUP(D24,PARAMETER_R!$A$7:$A$20,PARAMETER_R!$C$7:$C$20)*(PARAMETER_R!$B$2^((90-$D$11)/10)) -> 0 | G26: =HLOOKUP($K$32,Language!$A:$Y,44,0) -> max. Pressure | H26: =PARAMETER_R!G24 -> 16.38844986 | I26: =HLOOKUP($K$32,Language!$A:$Y,48,0) -> at Service Temperature
B27: =HLOOKUP($K$32,Language!$A:$Y,18,0) -> PRESSURE DROP RETURN | D27: =IF(G29="E","------",PARAMETER_R!C28*D25^PARAMETER_R!$B$1*LOOKUP(D24,PARAMETER_R!$A$7:$A$20,PARAMETER_R!$C$7:$C$20)*(PARAMETER_R!$B$2^((90-D12)/10))) -> 0 | G27: =HLOOKUP($K$32,Language!$A:$Y,45,0) -> Pressure drop | H27: =J15+J17 -> 0 | I27: =HLOOKUP($K$32,Language!$A:$Y,49,0) -> FLEXALEN pipes only
B28: =HLOOKUP($K$32,Language!$A:$Y,19,0) -> PRESSURE DROP TOTAL | D28: =IF(G29="E",D26,D26+D27) -> 0 | G28: =HLOOKUP($K$32,Language!$A:$Y,46,0) -> Reserve press. | H28: =H26-((D28/100000)+H12) -> 16.38844986 | I28: =HLOOKUP($K$32,Language!$A:$Y,50,0) -> at Service Temperature
G29: D
B30: =HLOOKUP($K$32,Language!$A:$Y,76,0) -> SELECT A FLEXALEN PRODUCT | D30: 5 | H30: =IF(G29="E",HLOOKUP($K$32,Language!B:Y,20,0),HLOOKUP($K$32,Language!B:Y,21,0)) -> HEATING / COOLING (F / R)
B32: =HLOOKUP($K$32,Language!$A:$Y,77,0) -> ENERGY LOSS PER m' TRENCH LENGTH | D32: =IFERROR(TEMPERATUR!C14+TEMPERATUR!D14,HLOOKUP($K$32,Language!$A:$Y,78,0)) -> Choose product | E32: W/m | J32: LANGUAGE: | K32: ENGLISH
B33: =HLOOKUP($K$32,Language!$A:$Y,79,0) -> ENERGY LOSS TOTAL | D33: =IFERROR(D32*D14/1000,HLOOKUP($K$32,Language!$A:$Y,78,0)) -> Choose product | E33: kW

Sheet HEATLOSS (hidden)
A9: =CALC!#REF! ->  | B9: =PARAMETER_R!C28 -> 0 | C9: =CALC!#REF! ->  | D9: =B9*C9 -> 
A10: Product | B10: Trench length [m] | C10: Heat loss [W/m] | D10: Heat loss total [W]

Sheet PARAMETER_R (hidden)
A1: QF | B1: 1.83 | C1: Materialkonstante für Rohrreibung | G1: KS-Druckkonstante A | I1: 1.008 | J1: Multiplikator P-D | L1: 0.75
A2: TF | B2: 1.02 | C2: Temperaturkonstante für dyn. Viskosität | G2: KS Druckkonstante B | I2: 0.0001 | J2: Begrenzung ab D | L2: 125
A3: Mediumdichte | B3: 0.98 | C3: Mediumdichte des Rohrinhaltes | G3: Bodentemperatur °C | I3: 10 | J3: max Druck bar Begrenzung | L3: 10
A4: DRUCKVERLUSTE UND GRENZWERTE LAUT DATENBLATT | G4: Kunststoff | J4: DIMENSIONSFAKTOR
A5: DRUCKVERLUSTTABELLE | B5: DI 1mm | C5: 21325 | D5: PaT90/m | E5: RN= | F5: =4^(1/7) -> 1.219013654 | G5: Pmax= | H5: 8 | J5: 1 | K5: ENTSPRICHT
A6: TYP | B6: DI | C6: PaT90/m | D6: l/sec max | E6: l/sec opt | F6: L/sec min | G6: v/min | H6: V/max | I6: V/optimal | J6: AUSWAHL | K6: Vmax
A7: 16 | B7: 11.6 | C7: =$C$5/(B7^$F$5) -> 1074.73209 | D7: =((B7/2)^2*3.14*H7)/1000 -> 0.092954048 | E7: =((B7/2)^2*3.14*I7)/1000 -> 0.063905908 | F7: =((B7/2)^2*3.14*G7)/1000 -> 0.003168888 | G7: 0.03 | H7: 0.88 | I7: 0.605 | J7: 0.01 | K7: =(J8*1000)/((B7/2)^2*3.14) -> 1.071486326
A8: 20 | B8: 14.4 | C8: =$C$5/(B8^$F$5) -> 825.7134245 | D8: 0.17905536 | E8: 0.116385984 | F8: 0.045577728 | G8: 0.28 | H8: 1.1 | I8: 0.715 | J8: 0.113180672 | K8: 1.3921875
A9: 25 | B9: 20.4 | C9: =$C$5/(B9^$F$5) -> 540.0475296 | D9: 0.395289576 | E9: 0.2587349952 | F9: 0.104539392 | G9: 0.32 | H9: 1.21 | I9: 0.792 | J9: 0.22661694 | K9: 1.21
A10: 32 | B10: 26 | C10: 401.8067316 | D10: 0.7004712 | E10: 0.45822491 | F10: 0.1963442 | G10: 0.37 | H10: 1.32 | I10: 0.8635 | J10: 0.395289576 | K10: =(J11*1000)/((B10/2)^2*3.14) -> 1.32
A11: 40 | B11: 32.6 | C11: 304.9693005 | D11: 1.193001238 | E11: 0.8029816025 | F11: 0.37541997 | G11: 0.45 | H11: 1.43 | I11: 0.9625 | J11: 0.7004712 | K11: 1.43 | M11: ARBEITSBEREICH enspricht rotem Bereich!!
A12: 50 | B12: 40.8 | C12: 231.991626 | D12: 2.012383296 | E12: 1.365545808 | F12: 0.6533712 | G12: 0.5 | H12: 1.54 | I12: 1.045 | J12: 1.193001238 | K12: 1.54
A13: 63 | B13: 51.5 | C13: 174.6516345 | D13: 3.6643486 | E13: 2.519239663 | F13: 1.24920975 | G13: 0.6 | H13: 1.76 | I13: 1.21 | J13: 2.012383296 | K13: 1.76
A14: 75 | B14: 61.2 | C14: 141.5189702 | D14: 5.821537392 | E14: 3.961879614 | F14: 1.91111076 | G14: 0.65 | H14: 1.98 | I14: 1.3475 | J14: 3.6643486 | K14: 1.98
A15: 90 | B15: 73.6 | C15: 113.0158858 | D15: 9.35508992 | E15: 6.43162432 | F15: 3.1892352 | G15: 0.75 | H15: 2.2 | I15: 1.5125 | J15: 5.821537392 | K15: 2.2
A16: 110 | B16: 90 | C16: 88.43837156 | D16: 16.087005 | E16: 11.01610125 | F16: 5.404725 | G16: 0.85 | H16: 2.53 | I16: 1.7325 | J16: 9.35508992 | K16: 2.53
A17: 125 | B17: 102.2 | C17: 75.74273105 | D17: 22.54779835 | E17: 15.33250288 | F17: 7.37927946 | G17: 0.9 | H17: 2.75 | I17: 1.87 | J17: 16.087005 | K17: 2.75
A18: 140 | B18: 114.6 | C18: 65.87412725 | D18: 29.48525752 | E18: 20.41287059 | F18: 10.3095306 | G18: 1 | H18: 2.86 | I18: 1.98 | J18: 22.54779835 | K18: 2.86
A19: 160 | B19: 130.8 | C19: 56.06803029 | D19: 42.84260086 | E19: 29.54662128 | F19: 14.77331064 | G19: 1.1 | H19: 3.19 | I19: 2.2 | J19: 29.48525752 | K19: 3.19
A20: 225 | B20: 184 | C20: 36.98666632 | D20: 105.2447616 | E20: 73.08664 | F20: 37.207744 | G20: 1.4 | H20: 3.96 | I20: 2.75 | J20: 42.84260086 | K20: =K19*(H20/H19) -> 3.96
A21: 250 | B21: 205 | C21: 32.42123231 | D21: 145.15435 | E21: 97.97918625 | F21: 46.185475 | G21: 1.4 | H21: 4.4 | I21: 2.97 | J21: 105.2447616
C24: =CALC!G29 -> D | E24: Pmax calc = | G24: =IF(CALC!D24<L2,IF(I1=0,H5,(I1+(C25*I2))^(90-C25)*H5),G25) -> 16.38844986 | H24: bar
A25: TEMPERATUR VORLAUF | C25: =IF($C$24="E",CALC!D11,CALC!D11) -> 0 | E25: Pmax calc limit= | G25: =IF(((I1+(C25*I2))^(90-C25)*H5)*L1<L3,((I1+(C25*I2))^(90-C25)*H5)*L1,L3) -> 10 | H25: bar
A26: TEMPERATUR RÜCKLAUF | C26: =IF($C$24="E",0,CALC!D12) -> 0
A27: SPREIZUNG | C27: =IF($C$24="E",0,CALC!D13) -> 0
A28: TRASSENLÄNGE | C28: =CALC!D14 -> 0
A29: LEISTUNG kW | C29: =IF($C$24="E",0,CALC!D15) -> 0
A30: MEDIUMMENGE | C30: =IF($C$24="E",CALC!D15,0) -> 0
A31: VORDRUCK für Pumpe | C31: =CALC!D16 -> 0

Sheet PARAMETER_HL (hidden)
A1: =CALC!D24 -> 16 | B1: =CALC!G29 -> D | E1: 1 | F1: 2 | G1: 3 | H1: 4 | I1: 5 | J1: 6 | K1: 7 | L1: 8 | M1: 9 | N1: 10 | O1: 11 | P1: 12 | Q1: 13 | R1: 14 | S1: 15 | T1: 16 | U1: 17 | V1: 18 | W1: 19 | X1: Temperature = | Z1: =IF(CALC!G29="E",CALC!D11,(CALC!D11+CALC!D12)/2) -> 0
G2: 20 | H2: 30 | I2: 40 | J2: 50 | K2: 60 | L2: 70 | M2: 80 | N2: 20-30 | P2: 30-40 | R2: 40-50 | T2: 50-60 | V2: 60-70 | X2: 70-max | Z2: f=ϑ.x+d | AC2: O.D. [mm] | AD2: 125
A3: O.D. [mm] | B3: TF Range | C3: Type | D3: 2 | E3: TF code | F3: help | G3: 20 | H3: 30 | I3: 40 | J3: 50 | K3: 60 | L3: 70 | M3: 80 | N3: x | O3: d | Z3: [W/m] | AC3: Type | AD3: D
A4: 16 | B4: Standard | C4: E | E4: VS-RH40A16 | F4: =C4&E4 -> EVS-RH40A16 | G4: 1.794 | H4: 3.644 | I4: 5.548 | J4: 7.507 | K4: 9.519 | L4: 11.585 | M4: 13.704 | N4: =SLOPE(G4:H4,$G$2:$H$2) -> 0.185 | O4: =INTERCEPT(G4:H4,$G$2:$H$2) -> -1.906 | P4: =SLOPE(H4:I4,$H$2:$I$2) -> 0.1904 | Q4: =INTERCEPT(H4:I4,$H$2:$I$2) -> -2.068 | R4: =SLOPE(I4:J4,$I$2:$J$2) -> 0.1959 | S4: =INTERCEPT(I4:J4,$I$2:$J$2) -> -2.288 | T4: =SLOPE(J4:K4,$J$2:$K$2) -> 0.2012 | U4: =INTERCEPT(J4:K4,$J$2:$K$2) -> -2.553 | V4: =SLOPE(K4:L4,$K$2:$L$2) -> 0.2066 | W4: =INTERCEPT(K4:L4,$K$2:$L$2) -> -2.877 | X4: =SLOPE(L4:M4,$L$2:$M$2) -> 0.2119 | Y4: =INTERCEPT(L4:M4,$L$2:$M$2) -> -3.248 | Z4: =IF($Z$1>=70,$Z$1*X4+Y4,IF(AND($Z$1>=60,$Z$1<70),V4*$Z$1+W4,IF(AND($Z$1>=50,$Z$1<60),T4*$Z$1+U4,IF(AND($Z$1>=40,$Z$1<50),R4*$Z$1+S4,IF(AND($Z$1>=30,$Z$1<40),P4*$Z$1+Q4,IF(AND($Z$1>0,$Z$1<30),N4*$Z$1+O4,0)))))) -> 0 | AA4: =D4 -> 0 | AM4: =D4 -> 0
A5: 20 | B5: Standard | C5: E | E5: VS-RH40A20 | F5: EVS-RH40A20 | G5: 2.354 | H5: 4.776 | I5: 7.264 | J5: 9.819 | K5: 12.439 | L5: 15.123 | M5: 17.87 | N5: =SLOPE(G5:H5,$G$2:$H$2) -> 0.2422 | O5: =INTERCEPT(G5:H5,$G$2:$H$2) -> -2.49 | P5: =SLOPE(H5:I5,$H$2:$I$2) -> 0.2488 | Q5: =INTERCEPT(H5:I5,$H$2:$I$2) -> -2.688 | R5: =SLOPE(I5:J5,$I$2:$J$2) -> 0.2555 | S5: =INTERCEPT(I5:J5,$I$2:$J$2) -> -2.956 | T5: =SLOPE(J5:K5,$J$2:$K$2) -> 0.262 | U5: =INTERCEPT(J5:K5,$J$2:$K$2) -> -3.281 | V5: =SLOPE(K5:L5,$K$2:$L$2) -> 0.2684 | W5: =INTERCEPT(K5:L5,$K$2:$L$2) -> -3.665 | X5: =SLOPE(L5:M5,$L$2:$M$2) -> 0.2747 | Y5: =INTERCEPT(L5:M5,$L$2:$M$2) -> -4.106 | Z5: =IF($Z$1>=70,$Z$1*X5+Y5,IF(AND($Z$1>=60,$Z$1<70),V5*$Z$1+W5,IF(AND($Z$1>=50,$Z$1<60),T5*$Z$1+U5,IF(AND($Z$1>=40,$Z$1<50),R5*$Z$1+S5,IF(AND($Z$1>=30,$Z$1<40),P5*$Z$1+Q5,IF(AND($Z$1>0,$Z$1<30),N5*$Z$1+O5,0)))))) -> 0 | AA5: =D5 -> 0 | AC5: Rijlabels | AM5: =D5 -> 0
A6: 25 | B6: Standard | C6: E | E6: VS-RH50A25 | F6: EVS-RH50A25 | G6: 2.344 | H6: 4.758 | I6: 7.241 | J6: 9.793 | K6: 12.413 | L6: 15.1 | M6: 17.853 | N6: =SLOPE(G6:H6,$G$2:$H$2) -> 0.2414 | O6: =INTERCEPT(G6:H6,$G$2:$H$2) -> -2.484 | P6: =SLOPE(H6:I6,$H$2:$I$2) -> 0.2483 | Q6: =INTERCEPT(H6:I6,$H$2:$I$2) -> -2.691 | R6: =SLOPE(I6:J6,$I$2:$J$2) -> 0.2552 | S6: =INTERCEPT(I6:J6,$I$2:$J$2) -> -2.967 | T6: =SLOPE(J6:K6,$J$2:$K$2) -> 0.262 | U6: =INTERCEPT(J6:K6,$J$2:$K$2) -> -3.307 | V6: =SLOPE(K6:L6,$K$2:$L$2) -> 0.2687 | W6: =INTERCEPT(K6:L6,$K$2:$L$2) -> -3.709 | X6: =SLOPE(L6:M6,$L$2:$M$2) -> 0.2753 | Y6: =INTERCEPT(L6:M6,$L$2:$M$2) -> -4.171 | Z6: 0 | AA6: 0 | AB6: 1 | AC6: F-SL200A125 | AM6: 0
A7: 32 | B7: Standard | C7: E | E7: VS-RH63A32 | F7: EVS-RH63A32 | G7: 2.426 | H7: 4.923 | I7: 7.492 | J7: 10.131 | K7: 12.841 | L7: 15.619 | M7: 18.466 | N7: 0.2497 | O7: -2.568 | P7: 0.2569 | Q7: -2.784 | R7: 0.2639 | S7: -3.064 | T7: 0.271 | U7: -3.419 | V7: 0.2778 | W7: -3.827 | X7: 0.2847 | Y7: -4.31 | Z7: 0 | AA7: 0 | AB7: 2 | AC7: VS-R200A125 | AM7: 0
A8: 40 | B8: Standard | C8: E | E8: VS-RH75A40 | F8: EVS-RH75A40 | G8: 2.614 | H8: 5.304 | I8: 8.07 | J8: 10.91 | K8: 13.824 | L8: 16.811 | M8: 19.87 | N8: 0.269 | O8: -2.766 | P8: 0.2766 | Q8: -2.994 | R8: 0.284 | S8: -3.29 | T8: 0.2914 | U8: -3.66 | V8: 0.2987 | W8: -4.098 | X8: 0.3059 | Y8: -4.602 | Z8: 0 | AA8: 0 | AB8: 3 | AM8: 0
A9: 50 | B9: Standard | C9: E | E9: VS-RH125A50 | F9: EVS-RH125A50 | G9: 2.072 | H9: 4.203 | I9: 6.393 | J9: 8.641 | K9: 10.947 | L9: 13.311 | M9: 15.732 | N9: 0.2131 | O9: -2.19 | P9: 0.219 | Q9: -2.367 | R9: 0.2248 | S9: -2.599 | T9: 0.2306 | U9: -2.889 | V9: 0.2364 | W9: -3.237 | X9: 0.2421 | Y9: -3.636 | Z9: 0 | AA9: 0 | AB9: 4 | AM9: 0
A10: 63 | B10: Standard | C10: E | E10: VS-RH125A63 | F10: EVS-RH125A63 | G10: 2.754 | H10: 5.583 | I10: 8.488 | J10: 11.468 | K10: 14.521 | L10: 17.647 | M10: 20.846 | N10: 0.2829 | O10: -2.904 | P10: 0.2905 | Q10: -3.132 | R10: 0.298 | S10: -3.432 | T10: 0.3053 | U10: -3.797 | V10: 0.3126 | W10: -4.235 | X10: 0.3199 | Y10: -4.746 | Z10: 0 | AA10: 0 | AB10: 5 | AM10: 0
A11: 75 | B11: Standard | C11: E | E11: VS-RH125A75 | F11: EVS-RH125A75 | G11: 3.673 | H11: 7.443 | I11: 11.307 | J11: 15.265 | K11: 19.315 | L11: 23.458 | M11: 27.69 | N11: 0.377 | O11: -3.867 | P11: 0.3864 | Q11: -4.149 | R11: 0.3958 | S11: -4.525 | T11: 0.405 | U11: -4.985 | V11: 0.4143 | W11: -5.543 | X11: 0.4232 | Y11: -6.166 | Z11: 0 | AA11: 0 | AB11: 6 | AM11: 0
A12: 90 | B12: Standard | C12: E | E12: VS-RH160A90 | F12: EVS-RH160A90 | G12: 3.204 | H12: 6.489 | I12: 9.855 | J12: 13.299 | K12: 16.823 | L12: 20.425 | M12: 24.104 | N12: 0.3285 | O12: -3.366 | P12: 0.3366 | Q12: -3.609 | R12: 0.3444 | S12: -3.921 | T12: 0.3524 | U12: -4.321 | V12: 0.3602 | W12: -4.789 | X12: 0.3679 | Y12: -5.328 | Z12: 0 | AA12: 0 | AB12: 7 | AM12: 0
A13: 110 | B13: Standard | C13: E | E13: VS-R200A110 | F13: EVS-R200A110 | G13: 3.386 | H13: 6.85 | I13: 10.393 | J13: 14.012 | K13: 17.708 | L13: 21.479 | M13: 25.326 | N13: 0.3464 | O13: -3.542 | P13: 0.3543 | Q13: -3.779 | R13: 0.3619 | S13: -4.083 | T13: 0.3696 | U13: -4.468 | V13: 0.3771 | W13: -4.918 | X13: 0.3847 | Y13: -5.45 | Z13: 0 | AA13: 0 | AM13: 0
A14: 125 | B14: Standard | C14: E | E14: VS-R200A125 | F14: EVS-R200A125 | G14: 4.114 | H14: 8.323 | I14: 12.624 | J14: 17.018 | K14: 21.503 | L14: 26.078 | M14: 30.743 | N14: 0.4209 | O14: -4.304 | P14: 0.4301 | Q14: -4.58 | R14: 0.4394 | S14: -4.952 | T14: 0.4485 | U14: -5.407 | V14: 0.4575 | W14: -5.947 | X14: 0.4665 | Y14: -6.577 | Z14: 0 | AA14: 0 | AM14: 0
A15: 140 | B15: Standard | C15: E | E15: FV-R225A140 | F15: EFV-R225A140 | G15: 3.89 | H15: 7.664 | I15: 11.437 | J15: 15.211 | K15: 18.985 | L15: 22.758 | M15: 26.532 | N15: 0.3774 | O15: -3.658 | P15: 0.3773 | Q15: -3.655 | R15: 0.3774 | S15: -3.659 | T15: 0.3774 | U15: -3.659 | V15: 0.3773 | W15: -3.653 | X15: 0.3774 | Y15: -3.66 | Z15: 0 | AA15: 0 | AM15: 0
A16: 160 | B16: Standard | C16: E | E16: FV-R250A160 | F16: EFV-R250A160 | G16: 4.319 | H16: 8.185 | I16: 12.05 | J16: 15.916 | K16: 19.781 | L16: 23.647 | M16: 27.512 | N16: 0.3866 | O16: -3.413 | P16: 0.3865 | Q16: -3.41 | R16: 0.3866 | S16: -3.414 | T16: 0.3865 | U16: -3.409 | V16: 0.3866 | W16: -3.415 | X16: 0.3865 | Y16: -3.408 | Z16: 0 | AA16: 0 | AM16: 0
A17: 225 | B17: Standard | C17: E | E17: FV-R315A225 | F17: EFV-R315A225 | G17: 5.54 | H17: 10.45 | I17: 15.359 | J17: 20.269 | K17: 25.178 | L17: 30.088 | M17: 34.997 | N17: 0.491 | O17: -4.28 | P17: 0.4909 | Q17: -4.277 | R17: 0.491 | S17: -4.281 | T17: 0.4909 | U17: -4.276 | V17: 0.491 | W17: -4.282 | X17: 0.4909 | Y17: -4.275 | Z17: 0 | AA17: 0 | AM17: 0
A18: 16 | B18: DHC | C18: E | E18: VS-RH75A16 | F18: EVS-RH75A16 | G18: 1.102 | H18: 2.239 | I18: 3.412 | J18: 4.62 | K18: 5.862 | L18: 7.14 | M18: 8.452 | N18: 0.1137 | O18: -1.172 | P18: 0.1173 | Q18: -1.28 | R18: 0.1208 | S18: -1.42 | T18: 0.1242 | U18: -1.59 | V18: 0.1278 | W18: -1.806 | X18: 0.1312 | Y18: -2.044 | Z18: 0 | AA18: 0 | AM18: 0
A19: 20 | B19: DHC | C19: E | E19: VS-RH90A20 | F19: EVS-RH90A20 | G19: 1.175 | H19: 2.387 | I19: 3.636 | J19: 4.921 | K19: 6.242 | L19: 7.599 | M19: 8.992 | N19: 0.1212 | O19: -1.249 | P19: 0.1249 | Q19: -1.36 | R19: 0.1285 | S19: -1.504 | T19: 0.1321 | U19: -1.684 | V19: 0.1357 | W19: -1.9 | X19: 0.1393 | Y19: -2.152 | Z19: 0 | AA19: 0 | AM19: 0
A20: 25 | B20: DHC | C20: E | E20: VS-RH90A25 | F20: EVS-RH90A25 | G20: 1.39 | H20: 2.824 | I20: 4.302 | J20: 5.822 | K20: 7.385 | L20: 8.99 | M20: 10.638 | N20: 0.1434 | O20: -1.478 | P20: 0.1478 | Q20: -1.61 | R20: 0.152 | S20: -1.778 | T20: 0.1563 | U20: -1.993 | V20: 0.1605 | W20: -2.245 | X20: 0.1648 | Y20: -2.546 | Z20: 0 | AA20: 0 | AM20: 0
A21: 32 | B21: DHC | C21: E | E21: VS-RH125A32 | F21: EVS-RH125A32 | G21: 1.411 | H21: 2.863 | I21: 4.357 | J21: 5.892 | K21: 7.469 | L21: 9.086 | M21: 10.743 | N21: 0.1452 | O21: -1.493 | P21: 0.1494 | Q21: -1.619 | R21: 0.1535 | S21: -1.783 | T21: 0.1577 | U21: -1.993 | V21: 0.1617 | W21: -2.233 | X21: 0.1657 | Y21: -2.513 | Z21: 0 | AA21: 0 | AM21: 0
A22: 40 | B22: DHC | C22: E | E22: VS-RH125A40 | F22: EVS-RH125A40 | G22: 1.678 | H22: 3.405 | I22: 5.181 | J22: 7.005 | K22: 8.877 | L22: 10.796 | M22: 12.763 | N22: 0.1727 | O22: -1.776 | P22: 0.1776 | Q22: -1.923 | R22: 0.1824 | S22: -2.115 | T22: 0.1872 | U22: -2.355 | V22: 0.1919 | W22: -2.637 | X22: 0.1967 | Y22: -2.973 | Z22: 0 | AA22: 0 | AM22: 0
A23: 50 | B23: DHC | C23: E | E23: VS-RH160A50 | F23: EVS-RH160A50 | G23: 1.73 | H23: 3.506 | I23: 5.327 | J23: 7.193 | K23: 9.105 | L23: 11.06 | M23: 13.06 | N23: 0.1776 | O23: -1.822 | P23: 0.1821 | Q23: -1.957 | R23: 0.1866 | S23: -2.137 | T23: 0.1912 | U23: -2.367 | V23: 0.1955 | W23: -2.625 | X23: 0.2 | Y23: -2.94 | Z23: 0 | AA23: 0 | AM23: 0
A24: 63 | B24: DHC | C24: E | E24: VS-RH160A63 | F24: EVS-RH160A63 | G24: 2.109 | H24: 4.273 | I24: 6.491 | J24: 8.764 | K24: 11.09 | L24: 13.47 | M24: 15.904 | N24: 0.2164 | O24: -2.219 | P24: 0.2218 | Q24: -2.381 | R24: 0.2273 | S24: -2.601 | T24: 0.2326 | U24: -2.866 | V24: 0.238 | W24: -3.19 | X24: 0.2434 | Y24: -3.568 | Z24: 0 | AA24: 0 | AM24: 0
A25: 75 | B25: DHC | C25: E | E25: VS-RH160A75 | F25: EVS-RH160A75 | G25: 2.521 | H25: 5.106 | I25: 7.756 | J25: 10.47 | K25: 13.248 | L25: 16.089 | M25: 18.992 | N25: 0.2585 | O25: -2.649 | P25: 0.265 | Q25: -2.844 | R25: 0.2714 | S25: -3.1 | T25: 0.2778 | U25: -3.42 | V25: 0.2841 | W25: -3.798 | X25: 0.2903 | Y25: -4.232 | Z25: 0 | AA25: 0 | AM25: 0
A26: 125 | B26: DHC | C26: E | E26: F-SL200A125 | F26: EF-SL200A125 | G26: 4.114 | H26: 8.323 | I26: 12.624 | J26: 17.018 | K26: 21.503 | L26: 26.078 | M26: 30.743 | N26: 0.4209 | O26: -4.304 | P26: 0.4301 | Q26: -4.58 | R26: 0.4394 | S26: -4.952 | T26: 0.4485 | U26: -5.407 | V26: 0.4575 | W26: -5.947 | X26: 0.4665 | Y26: -6.577 | Z26: 0 | AA26: 0
A27: 32 | B27: +31 | C27: E | E27: VS-RH90A32 | F27: EVS-RH90A32 | G27: 1.713 | H27: 3.479 | I27: 5.297 | J27: 7.167 | K27: 9.088 | L27: 11.061 | M27: 13.084 | N27: 0.1766 | O27: -1.819 | P27: 0.1818 | Q27: -1.975 | R27: 0.187 | S27: -2.183 | T27: 0.1921 | U27: -2.438 | V27: 0.1973 | W27: -2.75 | X27: 0.2023 | Y27: -3.1 | Z27: 0 | AA27: 0
A28: 40 | B28: +31 | C28: E | E28: VS-RH90A40 | F28: EVS-RH90A40 | G28: 2.168 | H28: 4.401 | I28: 6.698 | J28: 9.058 | K28: 11.48 | L28: 13.966 | M28: 16.513 | N28: 0.2233 | O28: -2.298 | P28: 0.2297 | Q28: -2.49 | R28: 0.236 | S28: -2.742 | T28: 0.2422 | U28: -3.052 | V28: 0.2486 | W28: -3.436 | X28: 0.2547 | Y28: -3.863 | Z28: 0 | AA28: 0
A29: 16 | C29: E | E29: VS-RS40A16 | F29: EVS-RS40A16 | G29: 1.794 | H29: 3.644 | I29: 5.548 | J29: 7.507 | K29: 9.519 | L29: 11.585 | M29: 13.704 | N29: =SLOPE(G29:H29,$G$2:$H$2) -> 0.185 | O29: =INTERCEPT(G29:H29,$G$2:$H$2) -> -1.906 | P29: =SLOPE(H29:I29,$H$2:$I$2) -> 0.1904 | Q29: =INTERCEPT(H29:I29,$H$2:$I$2) -> -2.068 | R29: =SLOPE(I29:J29,$I$2:$J$2) -> 0.1959 | S29: =INTERCEPT(I29:J29,$I$2:$J$2) -> -2.288 | T29: =SLOPE(J29:K29,$J$2:$K$2) -> 0.2012 | U29: =INTERCEPT(J29:K29,$J$2:$K$2) -> -2.553 | V29: =SLOPE(K29:L29,$K$2:$L$2) -> 0.2066 | W29: =INTERCEPT(K29:L29,$K$2:$L$2) -> -2.877 | X29: =SLOPE(L29:M29,$L$2:$M$2) -> 0.2119 | Y29: =INTERCEPT(L29:M29,$L$2:$M$2) -> -3.248 | Z29: =IF($Z$1>=70,$Z$1*X29+Y29,IF(AND($Z$1>=60,$Z$1<70),V29*$Z$1+W29,IF(AND($Z$1>=50,$Z$1<60),T29*$Z$1+U29,IF(AND($Z$1>=40,$Z$1<50),R29*$Z$1+S29,IF(AND($Z$1>=30,$Z$1<40),P29*$Z$1+Q29,IF(AND($Z$1>0,$Z$1<30),N29*$Z$1+O29,0)))))) -> 0 | AA29: 0 | AM29: 0
A30: 20 | C30: E | E30: VS-RS40A20 | F30: EVS-RS40A20 | G30: 2.354 | H30: 4.776 | I30: 7.264 | J30: 9.819 | K30: 12.439 | L30: 15.123 | M30: 17.87 | N30: 0.2422 | O30: -2.49 | P30: 0.2488 | Q30: -2.688 | R30: 0.2555 | S30: -2.956 | T30: 0.262 | U30: -3.281 | V30: 0.2684 | W30: -3.665 | X30: 0.2747 | Y30: -4.106 | Z30: 0 | AA30: 0 | AM30: 0
A31: 25 | C31: E | E31: VS-RS50A25 | F31: EVS-RS50A25 | G31: 2.344 | H31: 4.758 | I31: 7.241 | J31: 9.793 | K31: 12.413 | L31: 15.1 | M31: 17.853 | N31: 0.2414 | O31: -2.484 | P31: 0.2483 | Q31: -2.691 | R31: 0.2552 | S31: -2.967 | T31: 0.262 | U31: -3.307 | V31: 0.2687 | W31: -3.709 | X31: 0.2753 | Y31: -4.171 | Z31: 0 | AA31: 0 | AM31: 0
A32: 32 | C32: E | E32: VS-RS63A32 | F32: EVS-RS63A32 | G32: 2.426 | H32: 4.923 | I32: 7.492 | J32: 10.131 | K32: 12.841 | L32: 15.619 | M32: 18.466 | N32: 0.2497 | O32: -2.568 | P32: 0.2569 | Q32: -2.784 | R32: 0.2639 | S32: -3.064 | T32: 0.271 | U32: -3.419 | V32: 0.2778 | W32: -3.827 | X32: 0.2847 | Y32: -4.31 | Z32: 0 | AA32: 0 | AM32: 0
A33: 40 | C33: E | E33: VS-RS75A40 | F33: EVS-RS75A40 | G33: 2.614 | H33: 5.304 | I33: 8.07 | J33: 10.91 | K33: 13.824 | L33: 16.811 | M33: 19.87 | N33: 0.269 | O33: -2.766 | P33: 0.2766 | Q33: -2.994 | R33: 0.284 | S33: -3.29 | T33: 0.2914 | U33: -3.66 | V33: 0.2987 | W33: -4.098 | X33: 0.3059 | Y33: -4.602 | Z33: 0 | AA33: 0 | AM33: 0
A34: 50 | C34: E | E34: VS-RS90A50 | F34: EVS-RS90A50 | G34: 2.965 | H34: 6.014 | I34: 9.145 | J34: 12.358 | K34: 15.651 | L34: 19.024 | M34: 22.476 | N34: 0.3049 | O34: -3.133 | P34: 0.3131 | Q34: -3.379 | R34: 0.3213 | S34: -3.707 | T34: 0.3293 | U34: -4.107 | V34: 0.3373 | W34: -4.587 | X34: 0.3452 | Y34: -5.14 | Z34: 0 | AA34: 0 | AM34: 0
A35: 63 | C35: E | E35: VS-RS125A63 | F35: EVS-RS125A63 | G35: 2.754 | H35: 5.583 | I35: 8.488 | J35: 11.468 | K35: 14.521 | L35: 17.647 | M35: 20.846 | N35: 0.2829 | O35: -2.904 | P35: 0.2905 | Q35: -3.132 | R35: 0.298 | S35: -3.432 | T35: 0.3053 | U35: -3.797 | V35: 0.3126 | W35: -4.235 | X35: 0.3199 | Y35: -4.746 | Z35: 0 | AA35: 0 | AM35: 0
A36: 75 | C36: E | E36: VS-RS125A75 | F36: EVS-RS125A75 | G36: 3.673 | H36: 7.443 | I36: 11.307 | J36: 15.265 | K36: 19.315 | L36: 23.458 | M36: 27.69 | N36: 0.377 | O36: -3.867 | P36: 0.3864 | Q36: -4.149 | R36: 0.3958 | S36: -4.525 | T36: 0.405 | U36: -4.985 | V36: 0.4143 | W36: -5.543 | X36: 0.4232 | Y36: -6.166 | Z36: 0 | AA36: 0 | AM36: 0
A37: 90 | C37: E | E37: VS-RS160A90 | F37: EVS-RS160A90 | G37: 3.204 | H37: 6.489 | I37: 9.855 | J37: 13.299 | K37: 16.823 | L37: 20.425 | M37: 24.104 | N37: 0.3285 | O37: -3.366 | P37: 0.3366 | Q37: -3.609 | R37: 0.3444 | S37: -3.921 | T37: 0.3524 | U37: -4.321 | V37: 0.3602 | W37: -4.789 | X37: 0.3679 | Y37: -5.328 | Z37: 0 | AA37: 0 | AM37: 0
A38: 25 | C38: E | E38: VS-RS90A25 | F38: EVS-RS90A25 | G38: 1.39 | H38: 2.824 | I38: 4.302 | J38: 5.822 | K38: 7.385 | L38: 8.99 | M38: 10.638 | N38: 0.1434 | O38: -1.478 | P38: 0.1478 | Q38: -1.61 | R38: 0.152 | S38: -1.778 | T38: 0.1563 | U38: -1.993 | V38: 0.1605 | W38: -2.245 | X38: 0.1648 | Y38: -2.546 | Z38: 0 | AA38: 0 | AM38: 0
A39: 32 | C39: E | E39: VS-RS125A32 | F39: =C39&E39 -> EVS-RS125A32 | G39: 1.411 | H39: 2.863 | I39: 4.357 | J39: 5.892 | K39: 7.469 | L39: 9.086 | M39: 10.743 | N39: 0.1452 | O39: -1.493 | P39: 0.1494 | Q39: -1.619 | R39: 0.1535 | S39: -1.783 | T39: 0.1577 | U39: -1.993 | V39: 0.1617 | W39: -2.233 | X39: 0.1657 | Y39: -2.513 | Z39: 0 | AA39: 0 | AM39: 0
A40: 40 | C40: E | E40: VS-RS125A40 | F40: EVS-RS125A40 | G40: 1.678 | H40: 3.405 | I40: 5.181 | J40: 7.005 | K40: 8.877 | L40: 10.796 | M40: 12.763 | N40: 0.1727 | O40: -1.776 | P40: 0.1776 | Q40: -1.923 | R40: 0.1824 | S40: -2.115 | T40: 0.1872 | U40: -2.355 | V40: 0.1919 | W40: -2.637 | X40: 0.1967 | Y40: -2.973 | Z40: 0 | AA40: 0 | AM40: 0
A41: 50 | C41: E | E41: VS-RS160A50 | F41: EVS-RS160A50 | G41: 1.73 | H41: 3.506 | I41: 5.327 | J41: 7.193 | K41: 9.105 | L41: 11.06 | M41: 13.06 | N41: 0.1776 | O41: -1.822 | P41: 0.1821 | Q41: -1.957 | R41: 0.1866 | S41: -2.137 | T41: 0.1912 | U41: -2.367 | V41: 0.1955 | W41: -2.625 | X41: 0.2 | Y41: -2.94 | Z41: 0 | AA41: 0 | AM41: 0
A42: 63 | C42: E | E42: VS-RS160A63 | F42: EVS-RS160A63 | G42: 2.109 | H42: 4.273 | I42: 6.491 | J42: 8.764 | K42: 11.09 | L42: 13.47 | M42: 15.904 | N42: 0.2164 | O42: -2.219 | P42: 0.2218 | Q42: -2.381 | R42: 0.2273 | S42: -2.601 | T42: 0.2326 | U42: -2.866 | V42: 0.238 | W42: -3.19 | X42: 0.2434 | Y42: -3.568 | Z42: 0 | AA42: 0 | AM42: 0
A43: 75 | C43: E | E43: VS-RS160A75 | F43: =C43&E43 -> EVS-RS160A75 | G43: 2.521 | H43: 5.106 | I43: 7.756 | J43: 10.47 | K43: 13.248 | L43: 16.089 | M43: 18.992 | N43: 0.2585 | O43: -2.649 | P43: 0.265 | Q43: -2.844 | R43: 0.2714 | S43: -3.1 | T43: 0.2778 | U43: -3.42 | V43: 0.2841 | W43: -3.798 | X43: 0.2903 | Y43: -4.232 | Z43: 0 | AA43: 0 | AM43: =D43 -> 0
A44: 16 | B44: Standard | C44: D | D44: SP | E44: VS-RH40A16 | F44: DVS-RH40A16 | G44: 3.376 | H44: 6.781 | I44: 10.279 | J44: 13.868 | K44: 17.732 | L44: 21.313 | M44: 25.168 | N44: =SLOPE(G44:H44,$G$2:$H$2) -> 0.3405 | O44: =INTERCEPT(G44:H44,$G$2:$H$2) -> -3.434 | P44: =SLOPE(H44:I44,$H$2:$I$2) -> 0.3498 | Q44: =INTERCEPT(H44:I44,$H$2:$I$2) -> -3.713 | R44: =SLOPE(I44:J44,$I$2:$J$2) -> 0.3589 | S44: =INTERCEPT(I44:J44,$I$2:$J$2) -> -4.077 | T44: =SLOPE(J44:K44,$J$2:$K$2) -> 0.3864 | U44: =INTERCEPT(J44:K44,$J$2:$K$2) -> -5.452 | V44: =SLOPE(K44:L44,$K$2:$L$2) -> 0.3581 | W44: =INTERCEPT(K44:L44,$K$2:$L$2) -> -3.754 | X44: =SLOPE(L44:M44,$L$2:$M$2) -> 0.3855 | Y44: =INTERCEPT(L44:M44,$L$2:$M$2) -> -5.672 | Z44: =IF($Z$1>=70,$Z$1*X44+Y44,IF(AND($Z$1>=60,$Z$1<70),V44*$Z$1+W44,IF(AND($Z$1>=50,$Z$1<60),T44*$Z$1+U44,IF(AND($Z$1>=40,$Z$1<50),R44*$Z$1+S44,IF(AND($Z$1>=30,$Z$1<40),P44*$Z$1+Q44,IF(AND($Z$1>0,$Z$1<30),N44*$Z$1+O44,0)))))) -> 0 | AA44: SP | AM44: SP
A45: 20 | B45: Standard | C45: D | D45: SP | E45: VS-RH40A20 | F45: DVS-RH40A20 | G45: 4.316 | H45: 8.658 | I45: 13.106 | J45: 17.659 | K45: 22.548 | L45: 27.07 | M45: 31.925 | N45: 0.4342 | O45: -4.368 | P45: 0.4448 | Q45: -4.686 | R45: 0.4553 | S45: -5.106 | T45: 0.4889 | U45: -6.786 | V45: 0.4522 | W45: -4.584 | X45: 0.4855 | Y45: -6.915 | Z45: 0 | AA45: SP | AM45: SP
A46: 25 | B46: Standard | C46: D | D46: SP | E46: VS-RH50A25 | F46: DVS-RH50A25 | G46: 4.308 | H46: 8.644 | I46: 13.091 | J46: 17.647 | K46: 22.553 | L46: 27.078 | M46: 31.95 | N46: 0.4336 | O46: -4.364 | P46: 0.4447 | Q46: -4.697 | R46: 0.4556 | S46: -5.133 | T46: 0.4906 | U46: -6.883 | V46: 0.4525 | W46: -4.597 | X46: 0.4872 | Y46: -7.026 | Z46: 0 | AA46: SP | AM46: SP
A47: 32 | B47: Standard | C47: D | D47: SP | E47: VS-RH63A32 | F47: DVS-RH63A32 | G47: 4.449 | H47: 8.926 | I47: 13.516 | J47: 18.218 | K47: 23.281 | L47: 27.949 | M47: 32.976 | N47: 0.4477 | O47: -4.505 | P47: 0.459 | Q47: -4.844 | R47: 0.4702 | S47: -5.292 | T47: 0.5063 | U47: -7.097 | V47: 0.4668 | W47: -4.727 | X47: 0.5027 | Y47: -7.24 | Z47: 0 | AA47: SP | AM47: SP
A48: 40 | B48: Standard | C48: D | D48: SP | E48: VS-RH75A40 | F48: DVS-RH75A40 | G48: 4.762 | H48: 9.55 | I48: 14.457 | J48: 19.479 | K48: 24.884 | L48: 29.865 | M48: 35.225 | N48: 0.4788 | O48: -4.814 | P48: 0.4907 | Q48: -5.171 | R48: 0.5022 | S48: -5.631 | T48: 0.5405 | U48: -7.546 | V48: 0.4981 | W48: -5.002 | X48: 0.536 | Y48: -7.655 | Z48: 0 | AA48: SP | AM48: SP
A49: 50 | B49: Standard | C49: D | D49: SP | E49: VS-RH125A50 | F49: DVS-RH125A50 | G49: 3.876 | H49: 7.782 | I49: 11.786 | J49: 15.887 | K49: 20.285 | L49: 24.375 | M49: 28.76 | N49: 0.3906 | O49: -3.936 | P49: 0.4004 | Q49: -4.23 | R49: 0.4101 | S49: -4.618 | T49: 0.4398 | U49: -6.103 | V49: 0.409 | W49: -4.255 | X49: 0.4385 | Y49: -6.32 | Z49: 0 | AA49: SP | AM49: SP
A50: 63 | B50: Standard | C50: D | D50: SP | E50: VS-RH125A63 | F50: DVS-RH125A63 | G50: 5.008 | H50: 10.042 | I50: 15.195 | J50: 20.463 | K50: 26.113 | L50: 31.34 | M50: 36.945 | N50: 0.5034 | O50: -5.06 | P50: 0.5153 | Q50: -5.417 | R50: 0.5268 | S50: -5.877 | T50: 0.565 | U50: -7.787 | V50: 0.5227 | W50: -5.249 | X50: 0.5605 | Y50: -7.895 | Z50: 0 | AA50: SP | AM50: SP
A51: 75 | B51: Standard | C51: D | D51: SP | E51: VS-RH125A75 | F51: DVS-RH125A75 | G51: 6.426 | H51: 12.866 | I51: 19.442 | J51: 26.151 | K51: 33.346 | L51: 39.959 | M51: 47.052 | N51: 0.644 | O51: -6.454 | P51: 0.6576 | Q51: -6.862 | R51: 0.6709 | S51: -7.394 | T51: 0.7195 | U51: -9.824 | V51: 0.6613 | W51: -6.332 | X51: 0.7093 | Y51: -9.692 | Z51: 0 | AA51: SP | AM51: SP
A52: 90 | B52: Standard | C52: D | D52: SP | E52: VS-RH160A90 | F52: DVS-RH160A90 | G52: 5.741 | H52: 11.505 | I52: 17.39 | J52: 23.395 | K52: 29.811 | L52: 35.759 | M52: 42.113 | N52: 0.5764 | O52: -5.787 | P52: 0.5885 | Q52: -6.15 | R52: 0.6005 | S52: -6.63 | T52: 0.6416 | U52: -8.685 | V52: 0.5948 | W52: -5.877 | X52: 0.6354 | Y52: -8.719 | Z52: 0 | AA52: SP | AM52: SP
A53: 110 | B53: Standard | C53: D | D53: SP | E53: VS-R200A110 | F53: DVS-R200A110 | G53: 6.04 | H53: 12.102 | I53: 18.28 | J53: 24.574 | K53: 31.267 | L53: 37.503 | M53: 44.134 | N53: 0.6062 | O53: -6.084 | P53: 0.6178 | Q53: -6.432 | R53: 0.6294 | S53: -6.896 | T53: 0.6693 | U53: -8.891 | V53: 0.6236 | W53: -6.149 | X53: 0.6631 | Y53: -8.914 | Z53: 0 | AA53: SP | AM53: SP
A54: 125 | B54: Standard | C54: D | D54: SP | E54: VS-R200A125 | F54: DVS-R200A125 | G54: 7.135 | H54: 14.281 | I54: 21.558 | J54: 28.964 | K54: 36.851 | L54: 44.156 | M54: 51.937 | N54: 0.7146 | O54: -7.157 | P54: 0.7277 | Q54: -7.55 | R54: 0.7406 | S54: -8.066 | T54: 0.7887 | U54: -10.471 | V54: 0.7305 | W54: -6.979 | X54: 0.7781 | Y54: -10.311 | Z54: 0 | AA54: SP | AM54: SP
A55: 140 | B55: Standard | C55: D | D55: SP | E55: FV-R225A140 | F55: DFV-R225A140 | G55: 7.35 | H55: 13.688 | I55: 20.027 | J55: 26.365 | K55: 32.703 | L55: 39.042 | M55: 45.38 | N55: 0.6338 | O55: -5.326 | P55: 0.6339 | Q55: -5.329 | R55: 0.6338 | S55: -5.325 | T55: 0.6338 | U55: -5.325 | V55: 0.6339 | W55: -5.331 | X55: 0.6338 | Y55: -5.324 | Z55: 0 | AA55: SP | AM55: SP
A56: 160 | B56: Standard | C56: D | D56: SP | E56: FV-R250A160 | F56: DFV-R250A160 | G56: 7.95 | H56: 14.827 | I56: 21.703 | J56: 28.58 | K56: 35.457 | L56: 42.333 | M56: 49.21 | N56: 0.6877 | O56: -5.804 | P56: 0.6876 | Q56: -5.801 | R56: 0.6877 | S56: -5.805 | T56: 0.6877 | U56: -5.805 | V56: 0.6876 | W56: -5.799 | X56: 0.6877 | Y56: -5.806 | Z56: 0 | AA56: SP | AM56: SP
A57: 225 | B57: Standard | C57: D | D57: SP | E57: FV-R315A225 | F57: DFV-R315A225 | G57: 9.112 | H57: 17.707 | I57: 26.301 | J57: 34.896 | K57: 43.491 | L57: 52.085 | M57: 60.68 | N57: 0.8595 | O57: -8.078 | P57: 0.8594 | Q57: -8.075 | R57: 0.8595 | S57: -8.079 | T57: 0.8595 | U57: -8.079 | V57: 0.8594 | W57: -8.073 | X57: 0.8595 | Y57: -8.08 | Z57: 0 | AA57: SP | AM57: SP
A58: 16 | B58: DHC | C58: D | D58: SP | E58: VS-RH75A16 | F58: DVS-RH75A16 | G58: 2.142 | H58: 4.31 | I58: 6.542 | J58: 8.837 | K58: 11.195 | L58: 13.616 | M58: 16.099 | N58: 0.2168 | O58: -2.194 | P58: 0.2232 | Q58: -2.386 | R58: 0.2295 | S58: -2.638 | T58: 0.2358 | U58: -2.953 | V58: 0.2421 | W58: -3.331 | X58: 0.2483 | Y58: -3.765 | Z58: 0 | AA58: SP | AM58: SP
A59: 20 | B59: DHC | C59: D | D59: SP | E59: VS-RH90A20 | F59: DVS-RH90A20 | G59: 2.278 | H59: 4.582 | I59: 6.953 | J59: 9.388 | K59: 11.889 | L59: 14.454 | M59: 17.084 | N59: 0.2304 | O59: -2.33 | P59: 0.2371 | Q59: -2.531 | R59: 0.2435 | S59: -2.787 | T59: 0.2501 | U59: -3.117 | V59: 0.2565 | W59: -3.501 | X59: 0.263 | Y59: -3.956 | Z59: 0 | AA59: SP | AM59: SP
A60: 25 | B60: DHC | C60: D | D60: SP | E60: VS-RH90A25 | F60: DVS-RH90A25 | G60: 2.672 | H60: 5.373 | I60: 8.15 | J60: 11.002 | K60: 13.93 | L60: 16.933 | M60: 20.009 | N60: 0.2701 | O60: -2.73 | P60: 0.2777 | Q60: -2.958 | R60: 0.2852 | S60: -3.258 | T60: 0.2928 | U60: -3.638 | V60: 0.3003 | W60: -4.088 | X60: 0.3076 | Y60: -4.599 | Z60: 0 | AA60: SP | AM60: SP
A61: 32 | B61: DHC | C61: D | D61: SP | E61: VS-RH125A32 | F61: DVS-RH125A32 | G61: 2.711 | H61: 5.45 | I61: 8.262 | J61: 11.147 | K61: 14.105 | L61: 17.134 | M61: 20.234 | N61: 0.2739 | O61: -2.767 | P61: 0.2812 | Q61: -2.986 | R61: 0.2885 | S61: -3.278 | T61: 0.2958 | U61: -3.643 | V61: 0.3029 | W61: -4.069 | X61: 0.31 | Y61: -4.566 | Z61: 0 | AA61: SP | AM61: SP
A62: 40 | B62: DHC | C62: D | D62: SP | E62: VS-RH125A40 | F62: DVS-RH125A40 | G62: 3.19 | H62: 6.41 | I62: 9.713 | J62: 13.1 | K62: 16.569 | L62: 20.12 | M62: 23.752 | N62: 0.322 | O62: -3.25 | P62: 0.3303 | Q62: -3.499 | R62: 0.3387 | S62: -3.835 | T62: 0.3469 | U62: -4.245 | V62: 0.3551 | W62: -4.737 | X62: 0.3632 | Y62: -5.304 | Z62: 0 | AA62: SP | AM62: SP
A63: 50 | B63: DHC | C63: D | D63: SP | E63: VS-RH160A50 | F63: DVS-RH160A50 | G63: 3.286 | H63: 6.599 | I63: 9.991 | J63: 13.461 | K63: 17.008 | L63: 20.632 | M63: 24.331 | N63: 0.3313 | O63: -3.34 | P63: 0.3392 | Q63: -3.577 | R63: 0.347 | S63: -3.889 | T63: 0.3547 | U63: -4.274 | V63: 0.3624 | W63: -4.736 | X63: 0.3699 | Y63: -5.261 | Z63: 0 | AA63: SP | AM63: SP
A64: 63 | B64: DHC | C64: D | D64: SP | E64: VS-RH160A63 | F64: =C64&E64 -> DVS-RH160A63 | G64: 3.946 | H64: 7.921 | I64: 11.987 | J64: 16.143 | K64: 20.39 | L64: 24.725 | M64: 29.149 | N64: 0.3975 | O64: -4.004 | P64: 0.4066 | Q64: -4.277 | R64: 0.4156 | S64: -4.637 | T64: 0.4247 | U64: -5.092 | V64: 0.4335 | W64: -5.62 | X64: 0.4424 | Y64: -6.243 | Z64: 0 | AA64: SP | AM64: =D64 -> SP
A65: 75 | B65: DHC | C65: D | D65: SP | E65: VS-RH160A75 | F65: DVS-RH160A75 | G65: 4.641 | H65: 9.309 | I65: 14.082 | J65: 18.958 | K65: 23.935 | L65: 29.013 | M65: 34.191 | N65: 0.4668 | O65: -4.695 | P65: 0.4773 | Q65: -5.01 | R65: 0.4876 | S65: -5.422 | T65: 0.4977 | U65: -5.927 | V65: 0.5078 | W65: -6.533 | X65: 0.5178 | Y65: -7.233 | Z65: 0 | AA65: SP | AM65: =D68 -> SP
A66: 125 | B66: DHC | C66: D | D66: SP | E66: F-SL200A125 | F66: =C66&E66 -> DF-SL200A125 | G66: 7.135 | H66: 14.281 | I66: 21.558 | J66: 28.964 | K66: 36.851 | L66: 44.156 | M66: 51.937 | N66: 0.7146 | O66: -7.157 | P66: 0.7277 | Q66: -7.55 | R66: 0.7406 | S66: -8.066 | T66: 0.7887 | U66: -10.471 | V66: 0.7305 | W66: -6.979 | X66: 0.7781 | Y66: -10.311 | Z66: 0 | AA66: SP | AM66: =D69 -> SP
A67: 32 | B67: +31 | C67: D | D67: SP | E67: VS-RH90A32 | F67: DVS-RH90A32 | G67: 3.248 | H67: 6.527 | I67: 9.895 | J67: 13.352 | K67: 16.896 | L67: 20.527 | M67: 24.244 | N67: 0.3279 | O67: -3.31 | P67: 0.3368 | Q67: -3.577 | R67: 0.3457 | S67: -3.933 | T67: 0.3544 | U67: -4.368 | V67: 0.3631 | W67: -4.89 | X67: 0.3717 | Y67: -5.492 | Z67: 0 | AA67: SP | AM67: SP
A68: 40 | B68: +31 | C68: D | D68: SP | E68: VS-RH90A40 | F68: DVS-RH90A40 | G68: 4.032 | H68: 8.094 | I68: 12.261 | J68: 16.531 | K68: 20.904 | L68: 25.378 | M68: 29.952 | N68: 0.4062 | O68: -4.092 | P68: 0.4167 | Q68: -4.407 | R68: 0.427 | S68: -4.819 | T68: 0.4373 | U68: -5.334 | V68: 0.4474 | W68: -5.94 | X68: 0.4574 | Y68: -6.64 | Z68: 0 | AA68: SP | AM68: SP
A69: 16 | C69: D | D69: SP | E69: VS-RS40A16 | F69: DVS-RS40A16 | G69: 3.376 | H69: 6.781 | I69: 10.279 | J69: 13.868 | K69: 17.732 | L69: 21.313 | M69: 25.168 | N69: 0.3405 | O69: -3.434 | P69: 0.3498 | Q69: -3.713 | R69: 0.3589 | S69: -4.077 | T69: 0.3864 | U69: -5.452 | V69: 0.3581 | W69: -3.754 | X69: 0.3855 | Y69: -5.672 | Z69: 0 | AA69: =D69 -> SP | AM69: SP
A70: 20 | C70: D | D70: SP | E70: VS-RS40A20 | F70: DVS-RS40A20 | G70: 4.316 | H70: 8.658 | I70: 13.106 | J70: 17.659 | K70: 22.548 | L70: 27.07 | M70: 31.925 | N70: 0.4342 | O70: -4.368 | P70: 0.4448 | Q70: -4.686 | R70: 0.4553 | S70: -5.106 | T70: 0.4889 | U70: -6.786 | V70: 0.4522 | W70: -4.584 | X70: 0.4855 | Y70: -6.915 | Z70: 0 | AA70: SP | AM70: SP
A71: 25 | C71: D | D71: SP | E71: VS-RS50A25 | F71: DVS-RS50A25 | G71: 4.308 | H71: 8.644 | I71: 13.091 | J71: 17.647 | K71: 22.553 | L71: 27.078 | M71: 31.95 | N71: 0.4336 | O71: -4.364 | P71: 0.4447 | Q71: -4.697 | R71: 0.4556 | S71: -5.133 | T71: 0.4906 | U71: -6.883 | V71: 0.4525 | W71: -4.597 | X71: 0.4872 | Y71: -7.026 | Z71: 0 | AA71: SP | AM71: SP
A72: 32 | C72: D | D72: SP | E72: VS-RS63A32 | F72: DVS-RS63A32 | G72: 4.449 | H72: 8.926 | I72: 13.516 | J72: 18.218 | K72: 23.281 | L72: 27.949 | M72: 32.976 | N72: 0.4477 | O72: -4.505 | P72: 0.459 | Q72: -4.844 | R72: 0.4702 | S72: -5.292 | T72: 0.5063 | U72: -7.097 | V72: 0.4668 | W72: -4.727 | X72: 0.5027 | Y72: -7.24 | Z72: 0 | AA72: SP | AM72: SP
A73: 40 | C73: D | D73: SP | E73: VS-RS75A40 | F73: DVS-RS75A40 | G73: 4.762 | H73: 9.55 | I73: 14.457 | J73: 19.479 | K73: 24.884 | L73: 29.865 | M73: 35.225 | N73: 0.4788 | O73: -4.814 | P73: 0.4907 | Q73: -5.171 | R73: 0.5022 | S73: -5.631 | T73: 0.5405 | U73: -7.546 | V73: 0.4981 | W73: -5.002 | X73: 0.536 | Y73: -7.655 | Z73: 0 | AA73: SP | AM73: SP
A74: 50 | C74: D | D74: SP | E74: VS-RS90A50 | F74: =C74&E74 -> DVS-RS90A50 | G74: 5.327 | H74: 10.677 | I74: 16.152 | J74: 21.751 | K74: 27.77 | L74: 33.309 | M74: 39.265 | N74: 0.535 | O74: -5.373 | P74: 0.5475 | Q74: -5.748 | R74: 0.5599 | S74: -6.244 | T74: 0.6019 | U74: -8.344 | V74: 0.5539 | W74: -5.464 | X74: 0.5956 | Y74: -8.383 | Z74: 0 | AA74: SP | AM74: SP
A75: 63 | C75: D | D75: SP | E75: VS-RS125A63 | F75: DVS-RS125A63 | G75: 5.008 | H75: 10.042 | I75: 15.195 | J75: 20.463 | K75: 26.113 | L75: 31.34 | M75: 36.945 | N75: 0.5034 | O75: -5.06 | P75: 0.5153 | Q75: -5.417 | R75: 0.5268 | S75: -5.877 | T75: 0.565 | U75: -7.787 | V75: 0.5227 | W75: -5.249 | X75: 0.5605 | Y75: -7.895 | Z75: 0 | AA75: SP | AM75: =D75 -> SP
A76: 75 | C76: D | D76: SP | E76: VS-RS125A75 | F76: DVS-RS125A75 | G76: 6.426 | H76: 12.866 | I76: 19.442 | J76: 26.151 | K76: 33.346 | L76: 39.959 | M76: 47.052 | N76: 0.644 | O76: -6.454 | P76: 0.6576 | Q76: -6.862 | R76: 0.6709 | S76: -7.394 | T76: 0.7195 | U76: -9.824 | V76: 0.6613 | W76: -6.332 | X76: 0.7093 | Y76: -9.692 | Z76: 0 | AA76: SP | AM76: SP
A77: 90 | C77: D | D77: SP | E77: VS-RS160A90 | F77: DVS-RS160A90 | G77: 5.741 | H77: 11.505 | I77: 17.39 | J77: 23.395 | K77: 29.811 | L77: 35.759 | M77: 42.113 | N77: 0.5764 | O77: -5.787 | P77: 0.5885 | Q77: -6.15 | R77: 0.6005 | S77: -6.63 | T77: 0.6416 | U77: -8.685 | V77: 0.5948 | W77: -5.877 | X77: 0.6354 | Y77: -8.719 | Z77: 0 | AA77: SP | AM77: SP
A78: 16 | B78: Standard | C78: D | D78: D | E78: VS-RH63A2/16 | F78: DVS-RH63A2/16 | G78: 3.527 | H78: 5.878 | I78: 8.23 | J78: 10.581 | K78: 12.932 | L78: 15.284 | M78: 17.635 | N78: 0.2351 | O78: -1.175 | P78: 0.2352 | Q78: -1.178 | R78: 0.2351 | S78: -1.174 | T78: 0.2351 | U78: -1.174 | V78: 0.2352 | W78: -1.18 | X78: 0.2351 | Y78: -1.173 | Z78: 0 | AA78: D | AM78: D
A79: 20 | B79: Standard | C79: D | D79: D | E79: VS-RH75A2/20 | F79: DVS-RH75A2/20 | G79: 3.608 | H79: 6.013 | I79: 8.418 | J79: 10.824 | K79: 13.229 | L79: 15.634 | M79: 18.039 | N79: 0.2405 | O79: -1.202 | P79: 0.2405 | Q79: -1.202 | R79: 0.2406 | S79: -1.206 | T79: 0.2405 | U79: -1.201 | V79: 0.2405 | W79: -1.201 | X79: 0.2405 | Y79: -1.201 | Z79: 0 | AA79: D | AM79: D
A80: 25 | B80: Standard | C80: D | D80: D | E80: VS-RH125A2/25 | F80: DVS-RH125A2/25 | G80: 2.992 | H80: 4.987 | I80: 6.981 | J80: 8.976 | K80: 10.971 | L80: 12.965 | M80: 14.96 | N80: 0.1995 | O80: -0.998 | P80: 0.1994 | Q80: -0.995 | R80: 0.1995 | S80: -0.999 | T80: 0.1995 | U80: -0.999 | V80: 0.1994 | W80: -0.993 | X80: 0.1995 | Y80: -1 | Z80: 0 | AA80: D | AM80: D
A81: 32 | B81: Standard | C81: D | D81: D | E81: VS-RH125A2/32 | F81: DVS-RH125A2/32 | G81: 3.826 | H81: 6.377 | I81: 8.928 | J81: 11.478 | K81: 14.029 | L81: 16.58 | M81: 19.131 | N81: 0.2551 | O81: -1.276 | P81: 0.2551 | Q81: -1.276 | R81: 0.255 | S81: -1.272 | T81: 0.2551 | U81: -1.277 | V81: 0.2551 | W81: -1.277 | X81: 0.2551 | Y81: -1.277 | Z81: 0 | AA81: D | AM81: D
A82: 40 | B82: Standard | C82: D | D82: D | E82: VS-RH160A2/40 | F82: DVS-RH160A2/40 | G82: 3.356 | H82: 5.68 | I82: 8.004 | J82: 10.328 | K82: 12.652 | L82: 14.976 | M82: 17.3 | N82: 0.2324 | O82: -1.292 | P82: 0.2324 | Q82: -1.292 | R82: 0.2324 | S82: -1.292 | T82: 0.2324 | U82: -1.292 | V82: 0.2324 | W82: -1.292 | X82: 0.2324 | Y82: -1.292 | Z82: 0 | AA82: D | AM82: D
A83: 50 | B83: Standard | C83: D | D83: D | E83: VS-RH160A2/50 | F83: DVS-RH160A2/50 | G83: 4.374 | H83: 7.476 | I83: 10.579 | J83: 13.682 | K83: 16.785 | L83: 19.887 | M83: 22.99 | N83: 0.3102 | O83: -1.83 | P83: 0.3103 | Q83: -1.833 | R83: 0.3103 | S83: -1.833 | T83: 0.3103 | U83: -1.833 | V83: 0.3102 | W83: -1.827 | X83: 0.3103 | Y83: -1.834 | Z83: 0 | AA83: D | AM83: D
A84: 63 | B84: Standard | C84: D | D84: D | E84: VS-RH200A2/63 | F84: DVS-RH200A2/63 | G84: 4.374 | H84: 7.8 | I84: 11.226 | J84: 14.652 | K84: 18.078 | L84: 21.504 | M84: 24.93 | N84: 0.3426 | O84: -2.478 | P84: 0.3426 | Q84: -2.478 | R84: 0.3426 | S84: -2.478 | T84: 0.3426 | U84: -2.478 | V84: 0.3426 | W84: -2.478 | X84: 0.3426 | Y84: -2.478 | Z84: 0 | AA84: D | AM84: D
A85: 16 | B85: DHC | C85: D | D85: D | E85: VS-RH90A2/16 | F85: DVS-RH90A2/16 | G85: 3.253 | H85: 5.421 | I85: 7.59 | J85: 9.758 | K85: 11.926 | L85: 14.095 | M85: 16.263 | N85: 0.2168 | O85: -1.083 | P85: 0.2169 | Q85: -1.086 | R85: 0.2168 | S85: -1.082 | T85: 0.2168 | U85: -1.082 | V85: 0.2169 | W85: -1.088 | X85: 0.2168 | Y85: -1.081 | Z85: 0 | AA85: D | AM85: D
A86: 20 | B86: DHC | C86: D | D86: D | E86: VS-RH125A2/20 | F86: DVS-RH125A2/20 | G86: 2.497 | H86: 4.162 | I86: 5.827 | J86: 7.492 | K86: 9.157 | L86: 10.822 | M86: 12.487 | N86: 0.1665 | O86: -0.833 | P86: 0.1665 | Q86: -0.833 | R86: 0.1665 | S86: -0.833 | T86: 0.1665 | U86: -0.833 | V86: 0.1665 | W86: -0.833 | X86: 0.1665 | Y86: -0.833 | Z86: 0 | AA86: D | AM86: D
A87: 32 | B87: DHC | C87: D | D87: D | E87: VS-RH160A2/32 | F87: DVS-RH160A2/32 | G87: 2.743 | H87: 4.636 | I87: 6.529 | J87: 8.421 | K87: 10.314 | L87: 12.207 | M87: 14.1 | N87: 0.1893 | O87: -1.043 | P87: 0.1893 | Q87: -1.043 | R87: 0.1892 | S87: -1.039 | T87: 0.1893 | U87: -1.044 | V87: 0.1893 | W87: -1.044 | X87: 0.1893 | Y87: -1.044 | Z87: 0 | AA87: D | AM87: D
A88: 16 | C88: D | D88: D | E88: VS-RS63A2/16 | F88: DVS-RS63A2/16 | G88: 3.527 | H88: 5.878 | I88: 8.23 | J88: 10.581 | K88: 12.932 | L88: 15.284 | M88: 17.635 | N88: 0.2351 | O88: -1.175 | P88: 0.2352 | Q88: -1.178 | R88: 0.2351 | S88: -1.174 | T88: 0.2351 | U88: -1.174 | V88: 0.2352 | W88: -1.18 | X88: 0.2351 | Y88: -1.173 | Z88: 0 | AA88: D | AM88: D
A89: 20 | C89: D | D89: D | E89: VS-RS75A2/20 | F89: DVS-RS75A2/20 | G89: 3.608 | H89: 6.013 | I89: 8.418 | J89: 10.824 | K89: 13.229 | L89: 15.634 | M89: 18.039 | N89: 0.2405 | O89: -1.202 | P89: 0.2405 | Q89: -1.202 | R89: 0.2406 | S89: -1.206 | T89: 0.2405 | U89: -1.201 | V89: 0.2405 | W89: -1.201 | X89: 0.2405 | Y89: -1.201 | Z89: 0 | AA89: D | AM89: D
A90: 25 | C90: D | D90: D | E90: VS-RS125A2/25 | F90: DVS-RS125A2/25 | G90: 2.992 | H90: 4.987 | I90: 6.981 | J90: 8.976 | K90: 10.971 | L90: 12.965 | M90: 14.96 | N90: 0.1995 | O90: -0.998 | P90: 0.1994 | Q90: -0.995 | R90: 0.1995 | S90: -0.999 | T90: 0.1995 | U90: -0.999 | V90: 0.1994 | W90: -0.993 | X90: 0.1995 | Y90: -1 | Z90: 0 | AA90: D | AM90: D
A91: 32 | C91: D | D91: D | E91: VS-RS125A2/32 | F91: DVS-RS125A2/32 | G91: 3.826 | H91: 6.377 | I91: 8.928 | J91: 11.478 | K91: 14.029 | L91: 16.58 | M91: 19.131 | N91: 0.2551 | O91: -1.276 | P91: 0.2551 | Q91: -1.276 | R91: 0.255 | S91: -1.272 | T91: 0.2551 | U91: -1.277 | V91: 0.2551 | W91: -1.277 | X91: 0.2551 | Y91: -1.277 | Z91: 0 | AA91: D | AM91: D
A92: 40 | C92: D | D92: D | E92: VS-RS160A2/40 | F92: DVS-RS160A2/40 | G92: 3.356 | H92: 5.68 | I92: 8.004 | J92: 10.328 | K92: 12.652 | L92: 14.976 | M92: 17.3 | N92: 0.2324 | O92: -1.292 | P92: 0.2324 | Q92: -1.292 | R92: 0.2324 | S92: -1.292 | T92: 0.2324 | U92: -1.292 | V92: 0.2324 | W92: -1.292 | X92: 0.2324 | Y92: -1.292 | Z92: 0 | AA92: D | AM92: D
A93: 50 | C93: D | D93: D | E93: VS-RS160A2/50 | F93: DVS-RS160A2/50 | G93: 4.374 | H93: 7.476 | I93: 10.579 | J93: 13.682 | K93: 16.785 | L93: 19.887 | M93: 22.99 | N93: 0.3102 | O93: -1.83 | P93: 0.3103 | Q93: -1.833 | R93: 0.3103 | S93: -1.833 | T93: 0.3103 | U93: -1.833 | V93: 0.3102 | W93: -1.827 | X93: 0.3103 | Y93: -1.834 | Z93: 0 | AA93: D | AM93: D
A94: 63 | C94: D | D94: D | E94: VS-RS200A2/63 | F94: DVS-RS200A2/63 | G94: 4.374 | H94: 7.8 | I94: 11.226 | J94: 14.652 | K94: 18.078 | L94: 21.504 | M94: 24.93 | N94: 0.3426 | O94: -2.478 | P94: 0.3426 | Q94: -2.478 | R94: 0.3426 | S94: -2.478 | T94: 0.3426 | U94: -2.478 | V94: 0.3426 | W94: -2.478 | X94: 0.3426 | Y94: -2.478 | Z94: 0 | AA94: D | AM94: D

Sheet PRINTOUT
B2: =CALC!B3 -> PIPE SIZING FOR SINGLE OR DOUBLE LINES BETWEEN 2 NET POSITIONS
B3: =CALC!B4 -> FLEXALEN - PREINSULATED PIPE SYSTEMS
B4: =CALC!B5 -> MADE FOR DOMESTIC WATER DISTRIBUTION, COOLING AND HEATING SUPPLY LINES
I7: =CALC!B24 -> OD (DIMENSION) | K7: =CALC!D24 -> 16
I8: =CALC!B25 -> VELOCITY | K8: =CALC!D25 -> 0
B9: FLEXALEN | D9: =CALC!H30 -> HEATING / COOLING (F / R) | I9: =CALC!B21 -> VOLUMETRIC FLOW RATE | K9: =CALC!D21 -> 0
I10: =CALC!B20 -> HEAT LOAD kW SOURCE | K10: =CALC!D20 -> 0
I11: =CALC!B13 -> TEMP. DIFFERENCE (Tf - Tr) | K11: =CALC!D13 -> 0
I12: =CALC!G8 -> USABLE TEMP. DIFF. | K12: =CALC!I8 -> Choose product
B13: =CALC!G12 -> SOURCE | C13: =CALC!H12 -> 0 | D13: =CALC!I12 -> RESERVE PRESSURE FOR PUMP | I13: =CALC!G9 -> USABLE LOAD | K13: =CALC!I9 -> Choose product
B14: DELTA T | D14: =CALC!I13 -> Temperature °C | E14: =CALC!J13 -> Pressure loss bar | F14: =CALC!K13 -> Dimension OD | G14: =CALC!L13 -> END POINT | I14: =CALC!B26 -> PRESSURE DROP FLOW | K14: =CALC!D26 -> 0
B15: =CALC!G14 -> 0 | I15: =CALC!B27 -> PRESSURE DROP RETURN | K15: =CALC!D27 -> 0
C16: =CALC!H15 -> FLOW | D16: =CALC!I15 -> 0 | E16: =CALC!J15 -> 0 | F16: =CALC!K15 -> 16 | I16: =CALC!B28 -> PRESSURE DROP TOTAL | K16: =CALC!D28 -> 0
B17: =CALC!G16 -> PUMP | C17: =CALC!H16 -> 0 | F17: =CALC!K16 -> Choose product
B18: =CALC!G17 -> 0 | C18: =CALC!H17 -> RETURN | D18: =CALC!I17 -> 0 | E18: =CALC!J17 -> 0 | F18: =CALC!K17 -> 16 | I18: =CALC!G25 -> Pressure rating | J18: =CALC!I25 -> at 95°C | K18: =CALC!H25 -> 8
B19: =CALC!G18 -> 0 | C19: =CALC!H18 -> 0 | F19: =CALC!K18 -> Choose product | I19: =CALC!G26 -> max. Pressure | J19: =CALC!I26 -> at Service Temperature | K19: =CALC!H26 -> 16.38844986
D20: =CALC!I19 -> 0 | I20: =CALC!G27 -> Pressure drop | J20: =CALC!I27 -> FLEXALEN pipes only | K20: =CALC!H27 -> 0
I21: =CALC!G28 -> Reserve press. | J21: =CALC!I28 -> at Service Temperature | K21: =CALC!H28 -> 16.38844986
I23: =CALC!G21 -> Soil temperature | K23: =CALC!H21 -> 10
I24: =CALC!G22 -> Coverage | K24: =CALC!H22 -> 800
I25: =CALC!G23 -> Lambda soil | K25: =CALC!H23 -> 1
I26: =CALC!J21 -> Temperature drop Flow | K26: =CALC!L21 -> Choose product
I27: =CALC!J22 -> Trench Length | K27: =CALC!L22 -> 0
I28: =CALC!J23 -> Dwell time Flow | K28: =CALC!L23 -> 0
I29: =CALC!G10 -> NET VOLUME | K29: =CALC!I10 -> 0
I31: =HLOOKUP(CALC!$K$32,Language!$A:$Y,80,0) -> FLEXALEN Product | K31: =TEMPERATUR!C5 -> 0
I32: =HLOOKUP(CALC!$K$32,Language!$A:$Y,81,0) -> Quantity | K32: =IF(OR(CALC!$G$29="e",AND(CALC!$G$29="d",VLOOKUP(K31,PARAMETER_HL!E4:AA94,23,0)="d")),CALC!D14,2*CALC!D14) -> 

Sheet TEMPERATUR (hidden)
A2: CALCULATION TEMPERATURE DROP:
B4: Supply line / Heating, Cooling | C4: =CALC!G29 -> D | D4: (E or D)
B5: Product choosen | C5: =VLOOKUP(CALC!D30,PARAMETER_HL!AB6:AC12,2,FALSE) -> 0
C7: PIPE | D7: PIPE
C8: FLOW | D8: RETURN
A9: O.D. | B9: Diameter pipe | C9: =CALC!$K$15 -> 16 | D9: =CALC!$K$17 -> 16 | E9: mm
A10: ϑ | B10: Temperature medium | C10: =CALC!$D$11 -> 0 | D10: =CALC!$D$12 -> 0 | E10: °C | F10: =C10+D10 -> 0
A11: mm | B11: mass (medium) / m | C11: =((LOOKUP(C9,PARAMETER_R!$A$7:$A$20,PARAMETER_R!$B$7:$B$20)/2)^2*PI()*0.001) -> 0.1056831769 | D11: =((LOOKUP(D9,PARAMETER_R!$A$7:$A$20,PARAMETER_R!$B$7:$B$20)/2)^2*PI()*0.001) -> 0.1056831769 | E11: kg | F11: water: 1l = 1kg
A12: mtot | B12: mass total | C12: =C11*PARAMETER_R!C28 -> 0 | D12: =D11*PARAMETER_R!C28 -> 0 | E12: kg | F12: Total volume: | G12: =IF(ISERROR(D12),C12,C12+D12) -> 0 | H12: l
A13: t | B13: dwell time | C13: =PARAMETER_R!C28/CALC!$D$25 ->  | D13: =PARAMETER_R!C28/CALC!$D$25 ->  | E13: s
A14: Pm | B14: Power loss (Heat loss) / m | C14: =IF(C4="E",VLOOKUP($C$4&$C$5,PARAMETER_HL!$F$3:$Z$94,21,0),VLOOKUP($C$4&$C$5,PARAMETER_HL!$F$3:$Z$94,21,0)*(1/(F10/C10))) ->  | D14: =IF(C4="E","0",VLOOKUP($C$4&$C$5,PARAMETER_HL!$F$3:$Z$94,21,0)*(1/(F10/D10))) ->  | E14: W
A15: Ptot | B15: Heat loss total | C15: =C14*PARAMETER_R!C28 ->  | D15: =D14*PARAMETER_R!C28 ->  | E15: W
A17: c | B17: specific heat capacity (water) | C17: 4190 | D17: 4190 | E17: J / kg.K
A19: E1 | B19: Engergy content | C19: =C11*C17*C10 -> 0 | D19: =D11*D17*D10 -> 0 | E19: J
A20: E2 | B20: Engergy loss due heat loss | C20: =C14*C13 ->  | D20: =D14*D13 ->  | E20: J
A22: ϑ | B22: Temperature medium | C22: =(C19-C20)/(C11*C17) ->  | D22: =(D19-D20)/(D11*D17) ->  | E22: °C
A23: ΔT | B23: Temperature drop | C23: =C10-C22 ->  | D23: =D10-D22 ->  | E23: K
A26: Temperature difference: | C26: =CALC!$I$8 -> Choose product | D26: K
A27: Volumetric flow: | C27: =CALC!$D$21 -> 0 | D27: l/s
A28: Usable load | C28: =(C26*C27*C17)/1000 ->  | D28: kW

Sheet Language (hidden)
A1: INDEX | B1: ENGLISH | C1: GERMAN | D1: BULAGRIAN | E1: DUTCH | F1: FRENCH | G1: ROMANIAN | H1: TURKISH | I1: RUSSIAN | J1: Czech | K1: ITALIAN | L1: HUNGARIAN | M1: CROATIAN | N1: POLISH | O1: ESPAÑOL
A2: 1 | B2: PIPE SIZING FOR SINGLE OR DOUBLE LINES BETWEEN 2 NET POSITIONS | C2: ROHRLEITUNGSBERECHNUNG - VERBINDUNG VON ZWEI NETZPUNKTEN MIT EINZEL- ODER DOPPELLEITUNG | D2: ОРАЗМЕРЯВАНЕ НА ТРЪБОПРОВОД - СЪЕДИНЯВАНЕ НА 2 ТОЧКИ ЧРЕЗ ЕДНО- ИЛИ ДВУТРЪБНА СИСТЕМА | E2: BUISAFMETING VOOR ENKEL OF DUBBEL LEIDINGSYSTEEM VAN A NAAR B | F2: DIMENSIONNEMENT TUBE FLEXALEN LIGNE SIMPLE OU DOUBLE POUR LIAISON ENTRE BATIMENTS | G2: DIMENSIONARE CONDUCTE CIRCUITE SIMPLE SAU DUBLE INTRE DOUA PUNCTE DIN RETEA | H2: İKİ NOKTA ARASINDAKİ TEKLİ VEYA İKİLİ HATLAR İÇİN BORU EBADI | I2: РАСЧЕТ ДИАМЕТРА ТРУБ ДЛЯ ОДНОТРУБНОЙ ИЛИ ДВУХТРУБНОЙ СИСТЕМ МЕЖДУ ДВУМЯ ТОЧКАМИ | J2: VÝPOČET POTRUBÍ PRO TRUBNÍ VEDENÍ - SPOJENÍ DVOU BODŮJEDNOTRUBNÍM NEBO DVOUTRUBNÍM VEDENÍM | K2: Dimensionamento Tubo per linee singole o doppie tra due punti distinti | L2: Cső méretezése - két pontot összekötő egy/duplavezetékes csőrendszer | M2: DIMENZIONIRANJE CJEVOVODA - SPOJ 2 TOČKE SUSTAVA ( A-B ) - ZA JEDNOCJEVNE ILI DVOCJEVNE SUSTAVE | N2: Program doboru średnic dla rur pojedyńczych i podwójnych FLEXALEN pomiędzy źródłem ciepła i odbiorcą | O2: DIMENSIONAMIENTO DE TUBERIA CON LINEA DOBLE O LINEA SENCILLA PARA CONEXION ENTRE DOS PUNTOS
A3: 2 | B3: FLEXALEN - PREINSULATED PIPE SYSTEMS | C3: FLEXALEN - ISOLIERTE ROHRSYSTEME | D3: FLEXALEN - СИСТЕМА ОТ ПРЕДВАРИТЕЛНО ИЗОЛИРАНИ ТРЪБИ | E3: FLEXALEN VOORGEISOLEERD LEIDINGSYSTEEM | F3: FLEXALEN - SYSTEME TUBES PRE-ISOLES | G3: FLEXALEN-SISTEM CONDUCTE PREIZOLATE | H3: FLEXALEN - ÖNYALITIMLI BORU SİSTEMLERİ | I3: FLEXALEN - ПРЕДВАРИТЕЛЬНО ИЗОЛИРОВАННЫЕ ТРУБЫ | J3: FLEXALEN - PŘEDIZOLOVANÉ POTRUBNÍ SYSTÉMY | K3: Flexalen 600 - Sistema di tubi preisolati | L3: Flexalen - előszigetelt csőrendszer | M3: FLEXALEN 600 - PREDIZOLIRANI CIJEVNI SUSTAV | N3: Flexalen - system preizolowanych rur | O3: FLEXALEN - SISTEMA DE TUBERIA PRE AISLADO
A4: 3 | B4: MADE FOR DOMESTIC WATER DISTRIBUTION, COOLING AND HEATING SUPPLY LINES | C4: BERECHNUNG GILT FÜR BRAUCHWASSER-, HEIZUNG- UND KÜHLLEITUNGEN | D4: ИЗЧИСЛЕНИЕТО Е ВАЛИДНО ЗА ПИТЕЙНА ВОДА И ЗА ВОДА ПРИГОДНА ЗА ОТОПЛИТЕЛНИ СИСТЕМИ | E4: GESCHIKT VOOR TAPWATER EN WARMTE/KOUDE DISTRIBUTIE | F4: CE PROGRAMME EST DEFINI POUR LE CALCUL DES RESEAUX DE CHAUFFAGE ET DE DISTRIBUTION D'EAU SANITAIRE | G4: FABRICATE PENTRU RETELE DE DISTRIBUTIE A ENERGIEI TERMICE SI APEI MENAJERE | H4: SICAK-SOĞUK SU TESİSATLARI VE BÖLGESEL ISITMA HATLARI İÇİN YAPILMIŞTIR | I4: ЭТОТ РАСЧЕТ СДЕЛАН ДЛЯ СИСТЕМ БЫТОВОГО ВОДОСНАБЖЕНИЯ И ЦЕНТРАЛЬНОГО ОТОПЛЕНИЯ | J4: VYVINUTO PRO ROZVODY VODY A SYSTÉMY DÁLKOVÉHO TOPENÍ | K4: Prodotto per distribuire acqua sanitaria e reti di teleriscaldamento | L4: Számítások használati és Fűtővís rendszerek esetében érvényesek | M4: IZRAČUN VRIJEDI ZA SANITARNU I NORMALNO KONDICIONIRANU VODU U TOPLOVODNIM SUSTAVIMA GRIJANJA | N4: Przeznaczony do dystrybucji ciepłej wody użytkowej i uzdatnionej wody grzewczej | O4: DISEÑADO PARA APLICACIONES DE DISTRIBUCION DOMESTICA DE AGUA, AGUA HELADA Y CALEFACCION
A5: 4 | B5: QUALITY FACTOR | C5: QUALITÄTSFAKTOR | D5: КАЧЕСТВЕН ФАКТОР | E5: KWALITEITS FACTOR | F5: FACT QUALITE | G5: FACTOR CALITATE | H5: KALİTE FAKTÖRÜ | I5: КАЧЕСТВЕННЫЙ ФАКТОР | J5: FAKTOR JAKOSTI | K5: Fattore Qualità | L5: Minőségi tényező | M5: KVALITATIVNI FAKTOR | N5: Współczynnik jakości | O5: FACTOR CALIDAD
A6: 5 | B6: TEMPERATUR FACTOR | C6: TEMPERATURFAKTOR | D6: ТЕМПЕРАТУРЕН ФАКТОР | E6: TEMPERATUUR FACTOR | F6: FACT TEMPERATURE | G6: FACTOR TEMPERATURA | H6: SICAKLIK FAKTÖRÜ | I6: ТЕМПЕРАТУРНЫЙ ФАКТОР | J6: FAKTOR TEPLOTY | K6: Fattore Temp. | L6: Hőmérsékleti tényező | M6: TEMPERATURNI FAKTOR | N6: Współczynnik temperatury | O6: FACTOR TEMPERATURA
A7: 6 | B7: SIZE TUNING | C7: ANPASSUNG DIMENSION | D7: ДИМЕНЗИЯ ЗА НАПАСВАНЕ | E7: OPTIMALISERINGS FACTOR | F7: ADAPTATION DIAMETRE | G7: OPTIMIZARE DIMENSIONARE | H7: BOYUT AYARLAMA | I7: ПОДБОР ДИАМЕТРА | J7: PŘIZPŮSOBENÍ DIMENZE | K7: Sistema di dimensionamento | L7: Méretezés | M7: DIMENZIONIRANJE | N7: Współczynnik doboru średnic | O7: SELECCIÓN DE TAMAÑO
A8: 7 | B8: FLOW TEMPERATURE (Tf) | C8: TEMPERATUR VORLAUF (Tf) | D8: ТЕМПЕРАТУРА ПОДАВАНЕ | E8: AANVOER TEMPERATUUR | F8: TEMPERATURE DEPART | G8: TEMPERATURA TUR | H8: GİDİŞ SICAKLIĞI [°C] Tg | I8: ТЕМПЕРАТУРА В "ПОДАЧЕ" (Tп) | J8: TEPLOTA NA PŘÍVOD. VĚTVI (Tp ) | K8: Temp. di andata(Tf) | L8: Előremenő hőmérséklet | M8: TEMP. POL. (Tpolaza) | N8: Temperatura zasilania Tz | O8: TEMPERATURA DE SUMINISTRO (Ts)
A9: 8 | B9: RETURN TEMPERATURE (Tr) | C9: TEMPERATUR RÜCKLAUF (Tr) | D9: ВЪЗВРАТЕНА ТЕМПЕРАТУРА | E9: RETOUR TEMPERATUUR | F9: TEMPERATURE RETOUR | G9: TEMPERATURA RETUR | H9: DÖNÜŞ SICAKLIĞI [°C] Td | I9: ТЕМПЕРАТУРА В "ОБРАТКЕ" (То) | J9: TEPLOTA NA VRATNÉ VĚTVI (Tv) | K9: Temp. di ritorno(Tr) | L9: Visszatérő hőmérséklet | M9: TEMP. POV. (T povrata) | N9: Temperatura powrotu Tp | O9: TEMPERATURA DE RETORNO (Tr)
A10: 9 | B10: TEMP. DIFFERENCE (Tf - Tr) | C10: TEMP. SPREIZUNG (Tf - Tr) | D10: ТЕРМОРАЗЛИКА (захр./връщ.) | E10: TEMPERATUUR VERSCHIL | F10: DELTA T (Td-Tr) | G10: DIFERENTA TEMPERATURA | H10: SICAKLIK FARKI (Tg - Td) | I10: РАЗНИЦА ТЕМПЕРАТУР (Tп - Tо) | J10: TEPLOTNÍ SPÁD (Tp-Tv) | K10: Differenza di Temp.(Tf-Tr) | L10: Hőmérsékletkülönbség | M10: Δ T (Tpolaza - Tpovrata) | N10: Różnica temperatur (Tz-Tp) | O10: DIFERENCIA DE TEMPERATURA (Ts - Tr)
A11: 10 | B11: TRENCH LENGTH | C11: TRASSENLÄNGE | D11: ДЪЛЖИНА НА ТРАСЕТО | E11: TRACEE LENGTE | F11: L.TRANCHEE(m) | G11: LUNGIME SANT | H11: TRANŞE(KANAL) UZUNLUĞU | I11: ДЛИНА ТРАНШЕИ | J11: DÉLKA TRASY | K11: Lunghezza dello scavo | L11: Nyomvonal hossza | M11: DUŽINA TRASE | N11: Długość wykopu | O11: LONGITUD EN ZANJA
A12: 11 | B12: HEAT LOAD kW SOURCE | C12: LEISTUNG kW QUELLE | D12: ПОДАВАНА МОЩНОСТ | E12: OVER TE BRENGEN VERMOGEN kW | F12: PUISSANCE DEPART | G12: PUTERE SURSA kW | H12: ISI KAYNAĞI YÜKÜ ( KW ) | I12: ТЕПЛОВАЯ НАГРУЗКА, кВт | J12: VÝKON ZDROJE (kW) | K12: Calore necessario in KW | L12: Forrásoldali teljesítmény kW | M12: SNAGA IZVORA kW | N12: Obciążenie cieplne kW | O12: FUENTE DE CARGA TERMICA Kw
A13: 12 | B13: VOLUMETRIC FLOW RATE | C13: MEDIUMMENGE | D13: ДЕБИТ | E13: VOLUMESTROOM | F13: DEBIT | G13: DEBIT VOLUMETRIC | H13: HACİMSEL DEBİ | I13: ОБЪЕМНЫЙ РАСХОД | J13: OBJEMOVÝ PRŮTOK | K13: Portata | L13: Térfogatáram | M13: VOLUMETRIČKA KOLIČINA MEDIJA | N13: Natężenie przepływu | O13: FLUJO VOLUMETRICO
A14: 13 | B14: PIPE LENGTH | C14: ROHRLÄNGE | D14: ДЪЛЖИНА НА ТРЪБИТЕ | E14: BUIS LENGTE | F14: L.TUBES (m) | G14: LUNGIME CONDUCTA | H14: BORU UZUNLUĞU | I14: ДЛИНА ТРУБ | J14: CELKOVÁ DÉLKA POTRUBÍ | K14: Lunghezza del tubo | L14: Vezeték hossza | M14: DUŽINA CIJEVI | N14: Długość rury | O14: LONGITUD DE TUBERIA
A15: 14 | B15: OD (DIMENSION) | C15: DA (DIMENSION) | D15: DA (външен диаметър на тръбата) | E15: BUITEN DIAMETER | F15: DIAMETRE EXT. | G15: DE(DIMENSIUNE) | H15: BORU DIŞ ÇAPI ÖLÇÜSÜ | I15: Dнар. НАРУЖНЫЙ ДИАМЕТР | J15: DA (DIMENZE) | K15: DE(dimensione) | L15: Dk (külső átmérő) | M15: DA ( DIMENZIJA ) | N15: Średnica rury Dz | O15: D.E. (DIMENSION)
A16: 15 | B16: VELOCITY | C16: FLIESSGESCHWINDIGKEIT | D16: СКОРОСТ НА ПОТОКА | E16: SNELHEID | F16: VITESSE | G16: VITEZA | H16: HIZ | I16: СКОРОСТЬ ПОТОКА | J16: RYCHLOST PROUDĚNÍ | K16: Velocità del fluido | L16: Áramlási sebesség | M16: BRZINA STRUJANJA | N16: Prędkość przepływu | O16: VELOCIDAD
A17: 16 | B17: PRESSURE DROP FLOW | C17: DRUCKVERLUST VORLAUF | D17: ЗАГУБА НАЛЯГАНЕ / ПОДАВАНЕ | E17: DRUKVERLIES AANVOER | F17: PERTES CH. DEPART | G17: PIERDERE PRESIUNE TUR | H17: GİDİŞ HATTI BASINÇ KAYBI | I17: ПОТЕРЯ ДАВЛЕНИЯ В "ПОДАЧЕ" | J17: TLAK. ZTRÁTA NA PŘÍV. VĚTVI | K17: Pressione di andata | L17: Nyomásveszteség előre | M17: PAD TLAKA U POLAZU | N17: Spadek ciśnienia na zasilaniu | O17: CAIDA DE PRESION EN SUMINISTRO
A18: 17 | B18: PRESSURE DROP RETURN | C18: DRUCKVERLUST RÜCKLAUF | D18: ЗАГУБА НАЛЯГАНЕ / ВРЪЩАНЕ | E18: DRUKVERLIES RETOUR | F18: PERTES CH. RETOUR | G18: PIERDERE PRESIUNE RETUR | H18: DÖNÜŞ HATI BASINÇ KAYBI | I18: ПОТЕРЯ ДАВЛЕНИЯ В "ОБРАТКЕ" | J18: TLAK. ZTRÁTA NA VRAT.VĚTVI | K18: Pressione di ritorno | L18: Nyomásveszteség vissza | M18: PAD TLAKA U POVRATU | N18: Spadek ciśnienia na powrocie | O18: CAIDA DE PRESION EN RETORNO
A19: 18 | B19: PRESSURE DROP TOTAL | C19: DRUCKVERLUST GESAMT | D19: ЗАГУБА НАЛЯГАНЕ ОБЩО | E19: DRUKVERLIES TOTAAL | F19: PERTES CH. TOTALES | G19: PIERDERE TOTALA PRESIUNE | H19: TOPLAM BASINÇ KAYBI | I19: ОБЩИЕ ПОТЕРИ ДАВЛЕНИЯ | J19: TLAKOVÁ ZTRÁTA CELKEM | K19: Pressione totale | L19: Nyomásveszteség összesen | M19: UKUPAN PAD TLAKA | N19: Całkowity spadek ciśnienia | O19: CAIDA DE PRESION TOTAL
A20: 19 | B20: SUPPLY LINE (SINGLE LINE) | C20: SANITÄR (EINROHRSYSTEM) | D20: САНИТАРИЯ / БГВ | E20: AANVOERLEIDING | F20: LIGNE SIMPLE | G20: CIRCUIT ALIMENTARE (ACM) | H20: BESLEME HATTI ( TEK HAT ) | I20: ВОДОСНАБЖЕНИЕ (ОДНОТРУБНАЯ СИСТЕМА) | J20: TEPLÁ VODA(Jednotrubní vedení) | K20: Linea di adduzzione(singola) | L20: Ellátó hálózat (egyvezetékes csőrendszer) | M20: SANITARNA VODA | N20: Przewód zasilający ( pojedyncza rura) | O20: LINEA DE SUMINISTRO (LINEA SENCILLA)
A21: 20 | B21: HEATING / COOLING (F / R) | C21: HEIZUNG / KÜHLUNG (VL / RL) | D21: ОТОПЛЕНИЕ | E21: VERWARMING / KOELING | F21: ALLER+RETOUR | G21: INCALZIRE/RACIRE(TUR-RETUR) | H21: ISITMA / SOĞUTMA | I21: ОТОПЛЕНИЕ (ДВУХТРУБНАЯ СИСТЕМА) | J21: TOPENÍ/CHLAZENÍ(P/V) | K21: Riscaldamento/Condizionamento(...) | L21: Fűtés / Hűtés | M21: GRIJANJE/HLAĐENJE | N21: Rura podwójna ( zasilanie - powrót ) | O21: CALEFACCION / AGUA HELADA (S / R)
A22: 21 | B22: USABLE TEMP. DIFF. | C22: NUTZSPREIZUNG | D22: ТЕРМОРАЗЛИКА | E22: NUTTIG TEMPERATUURVERSCHIL | F22: DELTA T UTILE | G22: DIFERENTA TEMPERATURA UTILA | H22: KULLANILIR SICAKLIK FARKI | I22: РАЗНИЦА ТЕМПЕРАТУР В ТОЧКЕ2 | J22: POUŽITELNÝ TEPELNÝ SPÁD | K22: Differenza di Temp. utile | L22: Felhasználható hőmérséklet külömbség | M22: ISKORISTIVA TEMP. RAZLIKA | N22: Obliczeniowa różnica temperatur | O22: DIFERENCIA DE TEMPERATURA UTIL
A23: 22 | B23: USABLE LOAD | C23: NUTZLAST | D23: ПОЛЕЗЕН ТОВАР | E23: NUTTIG VERMOGEN | F23: PUISS UTILE | G23: PUTERE UTILA | H23: KULLANILIR ISI YÜKÜ | I23: ДОСТАВЛЕННОЕ ТЕПЛО В ТОЧКЕ2 | J23: POUŽITELNÉ ZATÍŽENÍ | K23: Carico utile | L23: Felshasználható terhelés | M23: ISKORISTIVA SNAGA | N23: Obliczeniowe obciążenie cieplne | O23: CARGA UTIL
A24: 23 | B24: NET VOLUME | C24: NETZVOLUMEN | D24: ОБЕМ НА СИСТЕМАТА | E24: NETTO VOLUME | F24: VOL. RESEAU | G24: VOLUM NET | H24: NET HACİM | I24: ОБЪЕМ СИСТЕМЫ | J24: OBSAH SÍTĚ | K24: Volume netto | L24: Hálozat volumene | M24: VOLUMEN CJEVOVODA | N24: Pojemność sieci | O24: VOLUMEN TOTAL
A25: 24 | B25: SOURCE | C25: QUELLE | D25: ИЗТОЧНИК | E25: BRON | F25: DEPART | G25: SURSA | H25: KAYNAK | I25: ИСТОЧНИК (1) | J25: ZDROJ | K25: Sorgente | L25: Forrás teljesítmeny kW | M25: IZVOR | N25: Źródło ciepła | O25: FUENTE
A26: 25 | B26: TEMP. DIFF. | C26: SPREIZUNG | D26: ТЕРМОРАЗЛИКА | E26: TEMPERATUUR VERSCHIL | F26: DELTA T | G26: DIFERENTA TEMPERATURA | H26: SICAKLIK FARKI | I26: РАЗНИЦА ТЕМПЕРАТУР | J26: TEPLOTNÍ SPÁD | K26: Differenza di Temp. | L26: Hőmérsékletkülönbség | M26: TEMPERATURNA RAZLIKA | N26: Różnica temperatury | O26: DIFERENCIA DE TEMPERATURA
A27: 26 | B27: NO | C27: OHNE | D27: няма | E27: NEE | F27: 0 K | G27: NU | H27: HAYIR | I27: НЕТ | J27: ----- | K27: No | L27: nem, nincs | M27: BEZ | N27: --------- | O27: NO
A28: 27 | B28: PUMP | C28: PUMPE | D28: ПОМПА | E28: POMP | F28: POMPE | G28: POMPA | H28: POMPA | I28: НАСОС | J28: ČERPADLO | K28: Pompa | L28: Szivattyú | M28: PUMPA | N28: Pompa | O28: BOMBA
A29: 28 | B29: RESERVE PRESSURE FOR PUMP | C29: VORDRUCK FÜR PUMPENAUSLEGUNG | D29: ПРЕДПИСАНИЕ ЗА ИЗБОР НА ПОМПА | E29: DRUKRESERVE VOOR POMP | F29: PERTES CH. ADDITIONNELLES | G29: REZERVA PRESIUNE POMPA | H29: POMPA YEDEK BASINCI | I29: ПОТЕРИ ДАВЛЕНИЯ ВО "ВНУТРЯНКЕ" | J29: TLAK PŘÍDAVNÉHO ČERPADLA | K29: Press. di riserva per la pompa | L29: A szivattú nyomástartaléka | M29: TLAČNA REZERVA PUMPE | N29: Rezerwowe ciśnienie pompy | O29: PRESION DE RESERVA PARA BOMBA
A30: 29 | B30: Temperature °C | C30: Temperatur °C | D30: Температура °C | E30: Temperatuur °C | F30: Température °C | G30: Temperatura °C | H30: Sıcaklık °C | I30: Температура °C | J30: Teplota° C | K30: Temp. in °C | L30: Hőmérséklet °C | M30: Temperatura °C | N30: Temperatura °C | O30: Temperatura °C
A31: 30 | B31: Pressure loss bar | C31: Druckverlust bar | D31: Загуба на налягане bar | E31: Drukverlies (bar) | F31: Pertes ch. Lin. | G31: Pierdere presiune bar | H31: Basınç kaybı [bar] | I31: Потери давления bar | J31: Tlaková ztráta bar | K31: Perdita di pressione in bar | L31: Nyomásveszteség bar | M31: Pad tlaka bar | N31: Strata ciśnienia, bar | O31: Pérdida de presión bar
A32: 31 | B32: Dimension OD | C32: Dimension DA | D32: Размер на тръбата DA | E32: Buitendiameter | F32: Diamètre Ext | G32: Diametru exterior | H32: Boyut ( DIŞ ÇAP) | I32: ДИАМЕТР Dнар. | J32: Dimenze (DA) | K32: Diamentro | L32: Dk (külső átmérő) | M32: DA ( DIMENZIJA ) | N32: Średnica Dz | O32: Dimensión D.E.
A33: 32 | B33: END POINT | C33: END - PUNKT | D33: ПОЛЕЗЕН ТОВАР | E33: EINDPUNT | F33: DESTINATION | G33: PUNCT FINAL | H33: SON NOKTA | I33: КОНЕЧНАЯ ТОЧКА (2) | J33: KONEČNÝ BOD | K33: Fine linea | L33: Végpont | M33: Završna točka | N33: Odbiorca | O33: PUNTO FINAL
A34: 33 | B34: FLOW | C34: VORLAUF | D34: ПОДАВАНЕ | E34: AANVOER | F34: DEPART | G34: TUR | H34: GİDİŞ HATTI | I34: "ПОДАЧА" | J34: Přív. větev | K34: Portata | L34: Előre | M34: POLAZ | N34: Zasilanie | O34: FLUJO
A35: 34 | B35: RETURN | C35: RÜCKLAUF | D35: ВРЪЩАНЕ | E35: RETOUR | F35: RETOUR | G35: RETUR | H35: DÖNÜŞ HATTI | I35: "ОБРАТКА" | J35: Vrat. větev | K35: Ritorno | L35: Vissza | M35: POVRAT | N35: Powrót | O35: RETORNO
A36: 35 | B36: not appliable | C36: entfällt | D36: НЯМА | E36: N.V.T. | F36: Inapplicable | G36: Neaplicabil | H36: Uygulanamaz | I36: не применяемо | J36: nezadáno | K36: Non applicabile | L36: Nem meghatározott | M36: nije primjenjivo | N36: Nie odpowiedni | O36: no aplica
A37: 36 | B37: Soil temperature | C37: Erdtemperatur | D37: температура земя | E37: Bodem temperatuur | F37: Température Sol | G37: Temperatura sol | H37: Toprak (zemin) sıcaklığı | I37: Температура почвы | J37: Teplota zeminy | K37: Temp. del terreno | L37: Talajhőmérséklet | M37: Temperatura tla | N37: Temperatura gruntu | O37: Temperatura del suelo
A38: 37 | B38: Coverage | C38: Überdeckung | D38: дълб. на полагане | E38: gronddekking | F38: Recouvrement | G38: Adancime sant | H38: Dolgu yuksekligi | I38: Глубина заложения | J38: Výška krytí | K38: Copertura | L38: Átfedés | M38: Pokrov | N38: Głębokość wykopu | O38: Cubierta
A39: 38 | B39: Lambda soil | C39: Lambda Erde | D39: Lambda земя | E39: Lambda bodem | F39: Lambda Sol | G39: Lambda Sol | H39: Toprak (zemin) ısı iletkenlik katsayısı | I39: λ почвы | J39: Lambda zeminy | K39: Lambda del terreno | L39: Talaj hővezetési tényező Lambda | M39: Lambda tla | N39: Lambda gruntu | O39: Valor Lambda de suelo
A40: 39 | B40: Temperature drop Flow | C40: Temperaturabfall VORLAUF | D40: Темп.загуба ПОДАВАНЕ | E40: Temperatuurverlies Aanvoer | F40: Chute temp. ligne départ | G40: Pierdere temperatura tur | H40: Sicaklik kaybi | I40: Потери темп. в "подаче" | J40: Teplotní ztráta - přívod. | K40: Temp. di rugiada | L40: Hömérsékletcsökkenés előre | M40: Pad temperature u polazu | N40: Spadek temperatury na zasilaniu | O40: Disminución de temperatura de flujo
A41: 40 | B41: Trench Length | C41: Trassenlänge | D41: Дължина на ТРАСЕТО | E41: Tracee Lengte | F41: Long.Tranch.m | G41: Lungime sant | H41: Tranşe (kanal) uzunluğu | I41: Длина траншеи | J41: Délka trasy | K41: Lunghezza dello scavo | L41: Nyomvonal hossza | M41: Dužina trase | N41: Długość wykopu | O41: Longitud de zanja
A42: 41 | B42: Dwell time Flow | C42: Verweildauer VORLAUF | D42: Времетраене на ПОТОКА | E42: Verblijfstijd Stroming | F42: Durée Ecoulement | G42: DURATA PARCURS TUR | H42: Akış süresi | I42: Время подачи | J42: Prodleva - přívodní větev | K42: Tempo di riempimento | L42: Tartózkodási idő előre | M42: Vrijeme protoka u polazu | N42: Czas przepływu | O42: Tiempo de permanencia del fluido
A43: 42 | B43: Pressure rating | C43: Druckreihe | D43: Налягане | E43: Drukklasse | F43: Press. Service | G43: PRESIUNEA REGIM | H43: Basınç değeri | I43: Номинал. давление | J43: Tlaková řada | K43: Pressione d'esercizio | L43: Nyomásgörbe (vezeték jelleggörbe) | M43: Tlačni red | N43: Ciśnienie odniesienia | O43: Rango de presión
A44: 43 | B44: max. Pressure | C44: Maximaldruck | D44: Max налягане | E44: Maximum druk | F44: Press. Max. | G44: Presiune Max. | H44: max.Basınç | I44: Max. давление | J44: Maximální tlak | K44: Pressione massima | L44: Maximális nyomás | M44: Maksimalni tlak | N44: Max. ciśnienie | O44: Presión máxima
A45: 44 | B45: Pressure drop | C45: Druckverlust | D45: загуба налягане | E45: Drukval | F45: Pertes Chges. | G45: Cadere Presiune | H45: Basınç kaybı bar | I45: Потери давления | J45: Tlaková ztráta | K45: Perdita di carico | L45: Nyomásveszteség | M45: Pad tlaka | N45: Spadek ciśnienia | O45: Caída de presión
A46: 45 | B46: Reserve press. | C46: Druckreserve | D46: резерв налягане | E46: Drukreserve | F46: Réserve Press. | G46: Rezerva presiune | H46: rezerv basinc | I46: Резерв давления | J46: Tlaková rezerva | K46: Pressione residua | L46: Nyomástartalék | M46: Tlačna rezerva | N46: Rezerwa ciśnienia | O46: Presión de reserva
A47: 46 | B47: at 95°C | C47: bei 95°C | D47: при 95°C | E47: bij 95°C | F47: à 95°C | G47: la 95°C | H47: 95°C de | I47: при 95°C | J47: při 95°C | K47: a 95°C | L47: 95°C - Mellett | M47: pri 95° C | N47: przy 95 °C | O47: a 95°C
A48: 47 | B48: at Service Temperature | C48: bei Anwendungstemperatur | D48: при прилаганата темпер. | E48: bij bedrijfstemperatuur | F48: à Température de Service | G48: la Temperatura de lucru | H48: İşletme sıcaklığında | I48: при рабочей температуре | J48: při provozní teplotě | K48: alla Temp. di esercizio | L48: Felhasználási hőmérséklet mellett | M48: PRI RADNOJ TEMPERATURI | N48: Przy temperaturze roboczej | O48: a Temperatura de Servicio
A49: 48 | B49: FLEXALEN pipes only | C49: im FLEXALEN Rohr | D49: в тръбите | E49: FLEXALEN leidingen | F49: Rés. FLEXALEN seul | G49: Conducte Flexalen | H49: Sadece FLEXALEN borular | I49: Только в трубах Flexalen | J49: Pouze pro potr.FLEXALEN | K49: delle tubazioni Flexalen | L49: Flexalen csőben | M49: samo za FLEXALEN cijevi | N49: Tylko dla rur Flexalen | O49: Solo tubería FLEXALEN
A50: 49 | B50: at Service Temperature | C50: bei Anwendungstemperatur | D50: при прилаганата темпер. | E50: BIJ BEDR TEMP | F50: à Température de Service | G50: la Temperatura de lucru | H50: İşletme sıcaklığında | I50: при рабочей температуре | J50: při provozní teplotě | K50: alla Temp. di esercizio | L50: Felhasználási hőmérséklet mellett | M50: pri radnoj temperaturi | N50: Przy temperaturze roboczej | O50: a Temperatura de Servicio
A51: 50 | B51: PLEASE CHOOSE APPLICATION: | C51: BITTE ANWENDUNG WÄHLEN: | D51: МОЛЯ ИЗБЕРЕТЕ ПРИЛОЖЕНИЕТО: | E51: SELECTEER TOEPASSING: | F51: CHOIX DE L'APPLICATION | G51: VA RUGAM ALEGETI APLICATIA | H51: LÜTFEN UYGULAMAYI SEÇİN: | I51: ВЫБЕРИТЕ СИСТЕМУ: | J51: PROSÍM VYPLŇTE UŽITÍ: | K51: Prego scegliere l'applicazione | L51: Felhasználási terület kiválasztása | M51: MOLIMO ODABERITE NAMJENU: | N51: Proszę wybrać zastosowanie | O51: FAVOR DE SELECCIONAR APLICACIÓN:
A52: 51 | B52: SUPPLY LINE → | C52: SANITÄR → | D52: САНИТАРИЯ / БГВ → | E52: TOEVOERLEIDING → | F52: LIGNE SIMPLE → | G52: CIRCUIT A.C.M → | H52: BESLEME HATTI ( TEK HAT ) → | I52: ВОДОСНАБЖЕНИЕ → | J52: TEPLÁ VODA → | K52: Linea di alimentazione | L52: Ellátó hálózat | M52: SANITARNA VODA → | N52: Rura pojedyncza → | O52: LINEA DE SUMINISTRO →
A53: 52 | B53: HEATING / COOLING → | C53: HEIZUNG / KÜHLUNG → | D53: ОТОПЛЕНИЕ → | E53: VERWARMING / KOELING → | F53: A/R CHAUF/EAU.GL → | G53: INCALZIRE/RACIRE → | H53: ISITMA / SOĞUTMA → | I53: ОТОПЛЕНИЕ → | J53: TOPENÍ/CHLAZENÍ → | K53: Riscaldamento/Condizionamento(...) | L53: Fűtés / Hűtés | M53: GRIJANJE / HLAĐENJE → | N53: Rura podwójna → | O53: CALEFACCION / AGUA HELADA →
A54: 53 | B54: Single pipe system: | F54: Ligne Simple | G54: SISTEM CONDUCTA SIMPLA | H54: Tek Borulu Sistemler: | I54: Обнотрубная система: | J54: Jednotrubní systém: | K54: Sistema di tubazioni singole | L54: Egyvezetékes csőrendszer | M54: Jednocjevni sustav: | N54: System pojedynczych rur | O54: Sistema de tubo sencillo:
A55: 54 | B55: TEMPERATURE | C55: TEMPERATUR | D55: Въведи температура в °C: | E55: VUL DE TEMPERATUUR IN VAN HET MEDIUM | F55: TEMPERATURE | G55: TEMPERATURA | H55: SICAKLIK | I55: ТЕМПЕРАТУРА [°C] | J55: TEPLOTA | K55: Temp. | L55: Hőmérséklet | M55: TEMPERATURA | N55: Temperatura | O55: TEMPERATURA
A56: 55 | B56: FILL IN TRENCH LENGTH | C56: TRASSENLÄNGE | D56: Въведи дължина на трасето в м: | E56: VUL DE LENGTE VAN HET TRACEE IN | F56: LONGUEUR DE TRANCHÉE | G56: LUNGIME SANT | H56: TRANŞE(KANAL) UZUNLUĞUNU GİR | I56: ВВЕДИТЕ ДЛИНУ ТРАНШЕИ в [м] | J56: ZADEJTE DÉLKU TRASY | K56: Lunghezza dello scavo | L56: Vezeték hossza (Kitölti a nyomvonal hosszat) | M56: U DUŽINI TRASE | N56: Wypełnienie długość wykopu | O56: LLENADO DE LONGITUD DE ZANJA
A57: 56 | B57: QUANTITY OF LIQUID | C57: MEDIUMMENGE | D57: Въведи дебит в л/сек: | E57: HOEVEELHEID VLOEISTOF | F57: DEBIT | G57: DEBIT | H57: AKIŞKANIN DEBİSİ | I57: РАСХОД [литров/сек] | J57: MNOŽSTVÍ MEDIA | K57: Portata | L57: (Folyadék mennyiség) Közegmennyiség | M57: KOLIČINA MEDIJA | N57: Natężenie przepływu | O57: CANTIDAD DE LIQUIDO
A58: 57 | B58: ADDITIONAL PRESSURE FOR PUMP | C58: VORDRUCK für PUMPE | D58: Въведи налягане в крайна точка в bar: | E58: ADDITIONELE DRUK VOOR DE POMP | F58: Press. additionnelle à la pompe | G58: PRESIUNE SUPLIMENTARA POMPA | H58: POMPA İLAVE BASINCI | I58: ПОТЕРИ ДАВЛЕНИЯ ВО "ВНУТРЯНКЕ" [bar] | J58: PŘÍDAVNÝ TLAK ČERPADLA | K58: Press. aggiuntiva per la pompa | L58: A Csatlakazó rendszer nyomásesése | M58: PRETLAK PUMPE | N58: Dodatkowe ciśnienie pompy | O58: PRESION ADICIONAL PARA BOMBA
A59: 58 | B59: Twin line system: | G59: Circuit dublu | H59: Çift Hatlı(gidiş-dönüş) Sistemler: | I59: Двухтрубная система: | J59: Dvoutrubní systém: | K59: Sistema di tubazioni doppie | L59: Többvezetékes csőrendszer | M59: Dvocjevni sustav: | N59: System podwójnych rur | O59: Sistema de tubo gemelo:
A60: 59 | B60: FLOW TEMPERATURE | C60: TEMPERATUR VORLAUF | D60: Въведи температура на подаване в °C: | E60: VUL DE AANVOER TEMPERATUUR IN | F60: TEMPERATURE DEPART | G60: TEMPERATURA TUR | H60: GIDIS SICAKLIGI | I60: ТЕМПЕРАТУРА В ПОДАЮЩЕМ ТРУБОПРОВОДЕ | J60: TEPLOTA NA PŘÍVOD. VĚTVI | K60: Temp. del fluido | L60: Hőmérséklet előre | M60: TEMPERATURA POLAZA | N60: Temperatura zasilania | O60: TEMPERATURA DE SUMINISTRO
A61: 60 | B61: RETURN TEMPERATURE | C61: TEMPERATUR RÜCKLAUF | D61: Въведи възвратна температура в °C: | E61: VUL DE RETOUR TEMPERATUUR IN | F61: TEMPERATURE RETOUR | G61: TEMPERATURA RETUR | H61: DONUS SICAKLIGI | I61: ТЕМПЕРАТУРА В ОБРАТНОМ ТРУБОПРОВОДЕ | J61: TEPLOTA NA VRATNÉ VĚTVI | K61: Temp. del fluido di ritorno | L61: Hőmérséklet vissza | M61: TEMPERATURA POVRATA | N61: Temperatura powrotu | O61: TEMPERATURA DE RETORNO
A62: 61 | B62: TRENCH LENGTH | C62: TRASSENLÄNGE | D62: Въведи дължина на трасето в м: | E62: VUL DE LENGTE VAN HET TRACEE IN | F62: LONG.TRANCH. | G62: LUNGIME SANT | H62: TRANŞE(KANAL) UZUNLUĞU | I62: ДЛИНА ТРАНШЕИ [м] | J62: DÉLKA TRASY | K62: Lunghezza dello scavo | L62: Nyomvonal hossz | M62: DUŽINA TRASE | N62: Długość wykopu | O62: LONGITUD EN ZANJA
A63: 62 | B63: HEAT LOAD | C63: ÜBERTRAGENE LEISTUNG ab HEIZHAUS | D63: Въведи мощност в крайна точка в kW: | E63: VUL HET TE TRANSPORTEREN VERMOGEN IN | F63: PUISSANCE | G63: SARCINA TERMICA | H63: ISI YÜKÜ | I63: ТЕПЛОВАЯ НАГРУЗКА [кВт] | J63: PŘENESENÝ VÝKON | K63: Perdita di calore | L63: Energia mennyiség kazánházból | M63: SNAGA PREUZETA OD KOTLOVNICE | N63: Obciążenie cieplne | O63: FUENTE DE CALOR
A64: 63 | B64: ADDITIONAL PRESSURE FOR PUMP | C64: VORDRUCK für PUMPE | D64: Въведи налягане в крайна точка в bar: | E64: ADDITIONELE DRUK VOOR DE POMP | F64: PRESS. ADDITIONNELLE A LA POMPE | G64: PRESIUNE SUPLIMENTARA POMPA | H64: POMPA İLAVE BASINCI | I64: ПОТЕРИ ДАВЛЕНИЯ ВО "ВНУТРЯНКЕ" [bar] | J64: PŘÍDAVNÝ TLAK ČERPADLA | K64: Press. aggiuntiva per la pompa | L64: Szivattyú előnyomása | M64: PRETLAK PUMPE | N64: Dodatkowe ciśnienie pompy | O64: PRESION ADICIONAL PARA BOMBA
A65: 64
A66: 65 | B66: °C | C66: °C | D66: °C | E66: °C | F66: °C | G66: °C | H66: °C | I66: °C | J66: °C | K66: °C | L66: °C | M66: °C | N66: °C | O66: °C
A67: 66 | B67: m | C67: m | D67: m | E67: m | F67: m | G67: m | H67: m | I67: м | J67: m | K67: m | L67: m | M67: m | N67: m | O67: m
A68: 67 | B68: l/s | C68: l/s | D68: l/s | E68: l/s | F68: l/s | G68: l/s | H68: lt/s | I68: l/s | J68: l/s | K68: l/s | L68: l/s | M68: l/s | N68: l/s | O68: l/s
A69: 68 | B69: bar | C69: bar | D69: bar | E69: bar | F69: bar | G69: bar | H69: bar | I69: bar | J69: bar | K69: bar | L69: bar | M69: bar | N69: bar | O69: bar
A70: 69
A71: 70 | B71: °C | C71: °C | D71: °C | E71: °C | F71: °C | G71: °C | H71: °C | I71: °C | J71: °C | K71: °C | L71: °C | M71: °C | N71: °C | O71: °C
A72: 71 | B72: °C | C72: °C | D72: °C | E72: °C | F72: °C | G72: °C | H72: °C | I72: °C | J72: °C | K72: °C | L72: °C | M72: °C | N72: °C | O72: °C
A73: 72 | B73: m | C73: m | D73: m | E73: m | F73: m | G73: m | H73: m | I73: м | J73: m | K73: m | L73: m | M73: m | N73: m | O73: m
A74: 73 | B74: kW | C74: kW | D74: kW | E74: kW | F74: kW | G74: Kw | H74: KW | I74: кВт | J74: kW | K74: kW | L74: kW | M74: kW | N74: kW | O74: kW
A75: 74 | B75: bar | C75: bar | D75: bar | E75: bar | F75: bar | G75: bar | H75: bar | I75: bar | J75: bar | K75: bar | L75: bar | M75: bar | N75: bar | O75: bar
A76: 75 | B76: SELECT A FLEXALEN PRODUCT | C76: FLEXALEN PRODUKT WÄHLEN | E76: KIES EEN FLEXALEN PRODUKT | F76: Choisir un produit FLEXALEN | I76: ВЫБЕРИТЕ ТИП ТРУБЫ FLEXALEN | J76: Výběr potrubí Flexalen | N76: Wybierz produkt Flexalen | O76: SELECCIONAR UN PRODUCTO FLEXALEN
A77: 76 | B77: ENERGY LOSS PER m' TRENCH LENGTH | C77: WÄRMEVERLUST PRO TRASSENMETER | E77: WARMTEVERLIES PER METER SLEUF | F77: Pertes de chaleur par mètre de tranchée | I77: ТЕПЛОВЫЕ ПОТЕРИ С 1 МЕТРА ТРАССЫ | J77: Tepelné ztráty /bm | N77: Strata ciepła na metr długości rury w wykopie | O77: PERDIDA TERMICA POR METRO DE LONGITUD EN ZANJA
A78: 77 | B78: Choose product | C78: Produkt wählen | E78: Kies produkt | I78: Выберите тип трубы | N78: Wybierz produkt | O78: Seleccionar producto
A79: 78 | B79: ENERGY LOSS TOTAL | C79: WÄRMEABSTRAHLUNG NETZ | E79: TOTAAL WARMTEVERLIES | F79: Pertes de chaleur totales | I79: ТЕПЛОВЫЕ ПОТЕРИ | J79: Celkové tepelné ztráty na trase | N79: Całkowita strata ciepła | O79: PERDIDA TERMICA TOTAL
A80: 79 | B80: FLEXALEN Product | C80: FLEXALEN Produkt | E80: FLEXALEN Produkt | F80: FLEXALEN | I80: FLEXALEN продукт | N80: Flexalen produktu | O80: Producto FLEXALEN
A81: 80 | B81: Quantity | C81: Menge | E81: Aantal | I81: количество | N81: Ilość | O81: Cantidad
A82: 81
A83: 82
A84: 83
A85: 84
A86: 85
A87: 86
A88: 87
A89: 88
A90: 89
A91: 90
A92: 91
A93: 92
A94: 93
A95: 94
A96: 95
A97: 96
A98: 97
A99: 98
A100: 99
A101: 100

Sheet Release Info (hidden)
B1: Flexalen QuickCalc
B2: Flexalen 600
A4: Version | B4: Date | C4: Changes
A5: v8.00 (beta) | B5: 2010-02-03 | C5: 1st multilingual language: english, german, bulgarian, dutch, Heatloss - temperature drop updated / new outlook,...
A6: v8.00 (beta) | B6: 2010-02-09 | C6: checked by several people and corrected
A7: v8.00 | B7: 2010-03-23 | C7: Sprachen OK: en, ger, ru, bul, dutch, turkish, romanian
A8: v8.01 | B8: 2010-06-04 | C8: Sprachen - Übersetzungsfehler behoben; v [m/s] Tabelle angefügt; Druckstufe neu für 16-110 und 125-225; Instruction en - aktualisiert
A9: v8.10 | B9: 2010-07-26 | C9: TF faktor angepasst von 1,03 auf 1,02 (nicht 1,011 wie beim großen, robusterer Wert)
C10: Alle Beschreibungen geändert auf Flexalen anstatt Flexalen 600
C11: alle Parameter aktualisiert
C12: CZ language added
A13: v8.11 | B13: 2010-10-14 | C13: Italian & hungarian language added
B14: 2010-10-20 | C14: corrections translation hungarian
B15: 2010-10-27 | C15: correction translation italien
A16: v8.12 | B16: 2011-03-07 | C16: croatian language added
A17: v9.00 | B17: 2011-06-20 | C17: Temperature drop calc completely new, Heat losses new, new spread sheet "Parameter_HL"
A18: v9.01 | B18: 2011-07-05 | C18: update languages, new polish language, some bug fixes
A19: v9.02 | B19: 2011-07-20 | C19: correct polish language, bug fix 75mm product choosing
A20: v9.10 | B20: 2011-12-05 | C20: spanish language, VBA code cleaned up
A21: v9.12 | B21: 2014-08-12 | C21: added VS-RH160A63 flow+return
A22: v9.13 | B22: 2016-02-15 | C22: Heat loss updated, temperature drop updated with difference between supply and return energy loss and full assorment included
